Workbook

Sheet Serviceability Calculator
F1: ="Version: "&vVersion -> Version: 1.00 (11 Dec 2023)
H2: Print Option included
B5: Loan Details | H5: 26 April Notes | I5: 2nd May | J5: 10th May
B7: Loan Amount | C7: 213213 | D7: Security Value | E7: 1000000 | H7: Validate Loan Amount can not be more than Security "Loan Amount can not be more than the Security Value"
B9: Term (months) | C9: 360 | D9: Actual Rate (%) | E9: 0.0519
B11: Repayment Type | C11: Principal and Interest | D11: I/O Period (years) | E11: 0 | I11: P&I default to zero for I/O (display as N/A)
B13: Regulated Loan | C13: Yes | D13: Purpose of Loan | E13: Purchase | H13: "Residential Loan" changed to "Type of Loan" with "RMDS or CMDS" options | I13: "Loan Type" Removed with "Regulated Loan" now driving "Buffer" selection, & "Purpose of Loan" included - "Purchase" / "Refinance" / "Other"
B15: Number of Individuals | C15: 1 | D15: Company Income Used | I15: These moved to End and leading into Applicant/Company Details
B18: ="Applicant "&INT(ROW(A18)/ROWS(vForm_Applicant)+0.9) -> Applicant 1 | J18: Applicant default to colapsed
B20: Name | D20: Residential Postcode
E21: =OFFSET(tApplicant_HEM,INT(ROW(A18)/ROWS(vForm_Applicant)+0.9)-1,7,1,1) -> 
B22: Applying As | D22: Joint with Applicant | I22: Joint with Applicant Default to zero if not Couple (display as N/A)
B24: Number of Dependents
B26: PAYG Income (Annual)
B28: PAYG Gross | C28: 150000
B30: Non-Taxable
B32: Self-Employed / Sole Trader / Partnership (Annual)
B34: Net Profit (Loss) Before Tax (NPBT)
B36: Interest
B38: Other Add Backs
B40: Depreciation
B42: Variable Income (Annual)
B44: Overtime / Allowance
B46: Bonus / Commission
B48: Investment
B50: Other
B52: Rental Income - If used for Assessment (Annual) | I52: Rental Income Double Click Issue repaired
B54: Number of Properties
C56: Rent Received | D56: % Ownership | E56: Investment Loan Amount
B57: Investment Property 1
B58: Investment Property 2
B59: Investment Property 3
B60: Investment Property 4
B61: Investment Property 5
B62: Investment Property 6
B63: Investment Property 7
B64: Investment Property 8
B65: Investment Property 9
B66: Investment Property 10
B69: ="Applicant "&INT(ROW(A69)/ROWS(vForm_Applicant)+0.9) -> Applicant 2
B71: Name | D71: Residential Postcode
E72: =OFFSET(tApplicant_HEM,INT(ROW(A69)/ROWS(vForm_Applicant)+0.9)-1,7,1,1) -> 
B73: Applying As | D73: Joint with Applicant
B75: Number of Dependents
B77: PAYG Income (Annual)
B79: PAYG Gross
B81: Non-Taxable
B83: Self-Employed / Sole Trader / Partnership (Annual)
B85: Net Profit (Loss) Before Tax (NPBT)
B87: Interest
B89: Other Add Backs
B91: Depreciation
B93: Variable Income (Annual)
B95: Overtime / Allowance
B97: Bonus / Commission
B99: Investment
B101: Other
B103: Rental Income - If used for Assessment (Annual)
B105: Number of Properties
C107: Rent Received | D107: % Ownership | E107: Investment Loan Amount
B108: Investment Property 1
B109: Investment Property 2
B110: Investment Property 3
B111: Investment Property 4
B112: Investment Property 5
B113: Investment Property 6
B114: Investment Property 7
B115: Investment Property 8
B116: Investment Property 9
B117: Investment Property 10
B120: ="Applicant "&INT(ROW(A120)/ROWS(vForm_Applicant)+0.9) -> Applicant 3
B122: Name | D122: Residential Postcode
E123: =OFFSET(tApplicant_HEM,INT(ROW(A120)/ROWS(vForm_Applicant)+0.9)-1,7,1,1) -> 
B124: Applying As | D124: Joint with Applicant
B126: Number of Dependents
B128: PAYG Income (Annual)
B130: PAYG Gross
B132: Non-Taxable
B134: Self-Employed / Sole Trader / Partnership (Annual)
B136: Net Profit (Loss) Before Tax (NPBT)
B138: Interest
B140: Other Add Backs
B142: Depreciation
B144: Variable Income (Annual)
B146: Overtime / Allowance
B148: Bonus / Commission
B150: Investment
B152: Other
B154: Rental Income - If used for Assessment (Annual)
B156: Number of Properties
C158: Rent Received | D158: % Ownership | E158: Investment Loan Amount
B159: Investment Property 1
B160: Investment Property 2
B161: Investment Property 3
B162: Investment Property 4
B163: Investment Property 5
B164: Investment Property 6
B165: Investment Property 7
B166: Investment Property 8
B167: Investment Property 9
B168: Investment Property 10
B171: ="Applicant "&INT(ROW(A171)/ROWS(vForm_Applicant)+0.9) -> Applicant 4
B173: Name | D173: Residential Postcode
E174: =OFFSET(tApplicant_HEM,INT(ROW(A171)/ROWS(vForm_Applicant)+0.9)-1,7,1,1) -> 
B175: Applying As | D175: Joint with Applicant
B177: Number of Dependents
B179: PAYG Income (Annual)
B181: PAYG Gross
B183: Non-Taxable
B185: Self-Employed / Sole Trader / Partnership (Annual)
B187: Net Profit (Loss) Before Tax (NPBT)
B189: Interest
B191: Other Add Backs
B193: Depreciation
B195: Variable Income (Annual)
B197: Overtime / Allowance
B199: Bonus / Commission
B201: Investment
B203: Other
B205: Rental Income - If used for Assessment (Annual)
B207: Number of Properties
C209: Rent Received | D209: % Ownership | E209: Investment Loan Amount
B210: Investment Property 1
B211: Investment Property 2
B212: Investment Property 3
B213: Investment Property 4
B214: Investment Property 5
B215: Investment Property 6
B216: Investment Property 7
B217: Investment Property 8
B218: Investment Property 9
B219: Investment Property 10
B222: ="Applicant "&INT(ROW(A222)/ROWS(vForm_Applicant)+0.9) -> Applicant 5
B224: Name | D224: Residential Postcode
E225: =OFFSET(tApplicant_HEM,INT(ROW(A222)/ROWS(vForm_Applicant)+0.9)-1,7,1,1) -> 
B226: Applying As | D226: Joint with Applicant
B228: Number of Dependents
B230: PAYG Income (Annual)
B232: PAYG Gross
B234: Non-Taxable
B236: Self-Employed / Sole Trader / Partnership (Annual)
B238: Net Profit (Loss) Before Tax (NPBT)
B240: Interest
B242: Other Add Backs
B244: Depreciation
B246: Variable Income (Annual)
B248: Overtime / Allowance
B250: Bonus / Commission
B252: Investment
B254: Other
B256: Rental Income - If used for Assessment (Annual)
B258: Number of Properties
C260: Rent Received | D260: % Ownership | E260: Investment Loan Amount
B261: Investment Property 1
B262: Investment Property 2
B263: Investment Property 3
B264: Investment Property 4
B265: Investment Property 5
B266: Investment Property 6
B267: Investment Property 7
B268: Investment Property 8
B269: Investment Property 9
B270: Investment Property 10
B273: ="Applicant "&INT(ROW(A273)/ROWS(vForm_Applicant)+0.9) -> Applicant 6
B275: Name | D275: Residential Postcode
E276: =OFFSET(tApplicant_HEM,INT(ROW(A273)/ROWS(vForm_Applicant)+0.9)-1,7,1,1) -> 
B277: Applying As | D277: Joint with Applicant
B279: Number of Dependents
B281: PAYG Income (Annual)
B283: PAYG Gross
B285: Non-Taxable
B287: Self-Employed / Sole Trader / Partnership (Annual)
B289: Net Profit (Loss) Before Tax (NPBT)
B291: Interest
B293: Other Add Backs
B295: Depreciation
B297: Variable Income (Annual)
B299: Overtime / Allowance
B301: Bonus / Commission
B303: Investment
B305: Other
B307: Rental Income - If used for Assessment (Annual)
B309: Number of Properties
C311: Rent Received | D311: % Ownership | E311: Investment Loan Amount
B312: Investment Property 1
B313: Investment Property 2
B314: Investment Property 3
B315: Investment Property 4
B316: Investment Property 5
B317: Investment Property 6
B318: Investment Property 7
B319: Investment Property 8
B320: Investment Property 9
B321: Investment Property 10
B324: Company Details | J324: Company default to colapsed
B326: Company Name
B328: Income (Annual)
B330: Net Profit (Loss) Before Tax (NPBT)
B332: Interest
B334: Other Add Backs
... 45 more rows

Sheet Administration (hidden)
B2: Administration
B4: Version | C4: 1.00 (11 Dec 2023)
B6: Parameter | C6: Regulated | D6: Unregulated
B7: Buffer | C7: 0.03 | D7: 0.03
B8: Buffer (for Refinance) | C8: 0.03 | D8: 0.03 | G8: Purpose of Loan Refinance Buffer included
B9: Floor Rate | C9: 0.06 | D9: 0.06
B10: Interest Gearing | C10: 0.0375 | D10: 0.0375
B11: Credit Card Rate | C11: 0.038 | D11: 0.038
B12: Loan Term (years) | C12: 30 | D12: 30
B13: Rental Shading | C13: 0.8 | D13: 0.8
B14: Property Expense % | C14: 0 | D14: 0 | G14: Property Expense % included
B16: PAYG | C16: Taxable Income from | D16: % on Excess | E16: Income Tax
C17: 0 | D17: 0 | E17: 0
C18: 18200 | D18: 0.19 | E18: =(C18-C17)*D17+E17 -> 0
C19: 45000 | D19: 0.325 | E19: =(C19-C18)*D18+E18 -> 5092
C20: 120000 | D20: 0.37 | E20: 29467
C21: 180000 | D21: 0.45 | E21: 51667
B23: Medicare | C23: 0.02
B25: Company Tax Rate | C25: 0.25

Sheet HEM (hidden)
A1: Categories | D1: HEM | E1: Gross Income (from)
A2: Region | B2: Household | C2: Dependents | E2: 0 | F2: 24000 | G2: 36000 | H2: 48000 | I2: 59000 | J2: 71000 | K2: 95000 | L2: 119000 | M2: 143000 | N2: 166000 | O2: 190000 | P2: 238000 | Q2: 297000 | R2: 357000
D5: Australia
A6: Australia | B6: Couple | C6: 0 | D6: Couple | E6: 0 | F6: 532.4297338 | G6: 547.5194191 | H6: 567.0529063 | I6: 602.6959269 | J6: 656.0104197 | K6: 733.0151322 | L6: 799.1698572 | M6: 886.721896 | N6: 924.1145305 | O6: 977.1135189 | P6: 1082.864393 | Q6: 1193.932612 | R6: 1251.349971
A7: Australia | B7: Couple | C7: 1 | D7: Couple with 1 child | E7: 0 | F7: 0 | G7: 630.8434875 | H7: 650.4238215 | I7: 686.1523648 | J7: 739.5948317 | K7: 816.7842943 | L7: 883.0977876 | M7: 970.8599414 | N7: 1008.342306 | O7: 1061.468475 | P7: 1167.473118 | Q7: 1278.807864 | R7: 1336.363007
A8: Australia | B8: Couple | C8: 2 | D8: Couple with 2 children | E8: 0 | F8: 0 | G8: 695.3182965 | H8: 714.8837161 | I8: 750.5850705 | J8: 803.9868639 | K8: 881.1175668 | L8: 947.3805615 | M8: 1035.075925 | N8: 1072.529739 | O8: 1125.615466 | P8: 1231.539414 | Q8: 1342.789408 | R8: 1400.3007
A9: Australia | B9: Couple | C9: 3 and above | D9: Couple with 3 children | E9: 0 | F9: 0 | G9: 0 | H9: 776.3699819 | I9: 812.0706146 | J9: 865.4713603 | K9: 942.6006755 | L9: 1008.862415 | M9: 1096.556119 | N9: 1134.00915 | O9: 1187.093963 | P9: 1293.015905 | Q9: 1404.263792 | R9: 1461.773959
A11: Australia | B11: Single | C11: 0 | D11: Single person | E11: 272.5133648 | F11: 287.2219206 | G11: 302.3391656 | H11: 321.9082871 | I11: 357.6163631 | J11: 411.0281742 | K11: 488.1734353 | L11: 554.4488965 | M11: 642.1607711 | N11: 679.621618 | O11: 732.7173399 | P11: 838.6612667 | Q11: 949.9322425 | R11: 1007.454327
A12: Australia | B12: Single | C12: 1 | D12: Single parent with 1 child | E12: 0 | F12: 379.8677902 | G12: 394.9546792 | H12: 414.4844781 | I12: 450.1208093 | J12: 503.4253188 | K12: 580.4156354 | L12: 646.5579616 | M12: 734.0936275 | N12: 771.4791629 | O12: 824.4682545 | P12: 930.1993271 | Q12: 1041.246729 | R12: 1098.653327
A13: Australia | B13: Single | C13: 2 | D13: Single parent with 2 children | E13: 0 | F13: 495.3790072 | G13: 510.6217682 | H13: 530.353432 | I13: 566.3580422 | J13: 620.21342 | K13: 697.9993551 | L13: 764.8252204 | M13: 853.2654936 | N13: 891.0374031 | O13: 944.5741402 | P13: 1051.39784 | Q13: 1163.592883 | R13: 1221.592668
A14: Australia | B14: Single | C14: 3 and above | D14: Single parent with 3 children | E14: 0 | F14: 0 | G14: 635.446383 | H14: 655.5979286 | I14: 692.3686336 | J14: 747.3699294 | K14: 826.8109413 | L14: 895.0587064 | M14: 985.3807655 | N14: 1023.956393 | O14: 1078.632305 | P14: 1187.728929 | Q14: 1302.311261 | R14: 1361.545072
D17: Sydney
A18: Sydney | B18: Couple | C18: 0 | D18: Couple | E18: 0 | F18: 518.6030671 | G18: 533.6927887 | H18: 553.2262395 | I18: 588.8692601 | J18: 642.1837893 | K18: 719.1885018 | L18: 785.343245 | M18: 872.8952656 | N18: 910.2879001 | O18: 963.2868885 | P18: 1069.037763 | Q18: 1180.105981 | R18: 1237.523341
A19: Sydney | B19: Couple | C19: 1 | D19: Couple with 1 child | E19: 0 | F19: 0 | G19: 615.1903223 | H19: 634.7706563 | I19: 670.4991995 | J19: 723.9416482 | K19: 801.1311473 | L19: 867.4446224 | M19: 955.2067761 | N19: 992.689141 | O19: 1045.81531 | P19: 1151.819952 | Q19: 1263.154699 | R19: 1320.709805
A20: Sydney | B20: Couple | C20: 2 | D20: Couple with 2 children | E20: 0 | F20: 0 | G20: 680.6652692 | H20: 700.2306979 | I20: 735.9320432 | J20: 789.3338366 | K20: 866.4645395 | L20: 932.7275342 | M20: 1020.422898 | N20: 1057.876712 | O20: 1110.962457 | P20: 1216.886405 | Q20: 1328.136399 | R20: 1385.647655
A21: Sydney | B21: Couple | C21: 3 and above | D21: Couple with 3 children | E21: 0 | F21: 0 | G21: 0 | H21: 765.591058 | I21: 801.2917636 | J21: 854.6925094 | K21: 931.8217516 | L21: 998.0834915 | M21: 1085.777195 | N21: 1123.230299 | O21: 1176.315021 | P21: 1282.236963 | Q21: 1393.484886 | R21: 1450.995054
A23: Sydney | B23: Single | C23: 0 | D23: Single person | E23: 258.0161568 | F23: 272.7246943 | G23: 287.8419348 | H23: 307.4110608 | I23: 343.1191323 | J23: 396.5309434 | K23: 473.6762045 | L23: 539.9516839 | M23: 627.6635403 | N23: 665.1243872 | O23: 718.2201456 | P23: 824.1640359 | Q23: 935.4350299 | R23: 992.9571142
A24: Sydney | B24: Single | C24: 1 | D24: Single parent with 1 child | E24: 0 | F24: 365.1345679 | G24: 380.2214386 | H24: 399.7512695 | I24: 435.3876007 | J24: 488.6921193 | K24: 565.6823994 | L24: 631.8247256 | M24: 719.3603916 | N24: 756.7459633 | O24: 809.7350185 | P24: 915.4660911 | Q24: 1026.513529 | R24: 1083.920054
A25: Sydney | B25: Single | C25: 2 | D25: Single parent with 2 children | E25: 0 | F25: 479.046656 | G25: 494.2894629 | H25: 514.0210808 | I25: 550.0256909 | J25: 603.8810688 | K25: 681.6669947 | L25: 748.4928599 | M25: 836.9331515 | N25: 874.7050795 | O25: 928.2417982 | P25: 1035.065516 | Q25: 1147.260522 | R25: 1205.260308
A26: Sydney | B26: Single | C26: 3 and above | D26: Single parent with 3 children | E26: 0 | F26: 0 | G26: 617.2889733 | H26: 637.4403921 | I26: 674.2110971 | J26: 729.2123836 | K26: 808.6534142 | L26: 876.9011794 | M26: 967.223276 | N26: 1005.798903 | O26: 1060.474816 | P26: 1169.571477 | Q26: 1284.153696 | R26: 1343.387583
D29: Balance of NSW
A30: Balance of NSW | B30: Couple | C30: 0 | D30: Couple | E30: 0 | F30: 547.6036494 | G30: 562.6933619 | H30: 582.2268219 | I30: 617.8698334 | J30: 671.1843352 | K30: 748.1890478 | L30: 814.3437728 | M30: 901.8958843 | N30: 939.2884279 | O30: 992.2874163 | P30: 1098.038309 | Q30: 1209.1066 | R30: 1266.523887
A31: Balance of NSW | B31: Couple | C31: 1 | D31: Couple with 1 child | E31: 0 | F31: 0 | G31: 644.2604602 | H31: 663.8407851 | I31: 699.5693284 | J31: 753.0118044 | K31: 830.201267 | L31: 896.5147421 | M31: 984.2769141 | N31: 1021.759261 | O31: 1074.885448 | P31: 1180.89009 | Q31: 1292.224837 | R31: 1349.779979
A32: Balance of NSW | B32: Couple | C32: 2 | D32: Couple with 2 children | E32: 0 | F32: 0 | G32: 709.7132687 | H32: 729.2787338 | I32: 764.9800518 | J32: 818.3818452 | K32: 895.5125481 | L32: 961.7755428 | M32: 1049.470888 | N32: 1086.92472 | O32: 1140.010429 | P32: 1245.934377 | Q32: 1357.184407 | R32: 1414.695736
A33: Balance of NSW | B33: Couple | C33: 3 and above | D33: Couple with 3 children | E33: 0 | F33: 0 | G33: 0 | H33: 794.6385074 | I33: 830.3392222 | J33: 883.7399679 | K33: 960.8692102 | L33: 1027.131023 | M33: 1114.824708 | N33: 1152.277739 | O33: 1205.362479 | P33: 1311.284421 | Q33: 1422.532381 | R33: 1480.042585
A35: Balance of NSW | B35: Single | C35: 0 | D35: Single person | E35: 287.069648 | F35: 301.778181 | G35: 316.8954261 | H35: 336.4645521 | I35: 372.172619 | J35: 425.5844484 | K35: 502.7297095 | L35: 569.0051797 | M35: 656.7170544 | N35: 694.177883 | O35: 747.2736231 | P35: 853.2174952 | Q35: 964.4885075 | R35: 1022.010592
A36: Balance of NSW | B36: Single | C36: 1 | D36: Single parent with 1 child | E36: 0 | F36: 394.1296876 | G36: 409.2165811 | H36: 428.746371 | I36: 464.3827113 | J36: 517.6872208 | K36: 594.6774918 | L36: 660.8198544 | M36: 748.355484 | N36: 785.7410739 | O36: 838.7301655 | P36: 944.4612017 | Q36: 1055.50864 | R36: 1112.915165
A37: Balance of NSW | B37: Single | C37: 2 | D37: Single parent with 2 children | E37: 0 | F37: 508.3414035 | G37: 523.5842105 | H37: 543.3158283 | I37: 579.3204476 | J37: 633.1758623 | K37: 710.9617882 | L37: 777.7876534 | M37: 866.227945 | N37: 903.999873 | O37: 957.5365365 | P37: 1064.360273 | Q37: 1176.555279 | R37: 1234.555138
A38: Balance of NSW | B38: Single | C38: 3 and above | D38: Single parent with 3 children | E38: 0 | F38: 0 | G38: 647.2070031 | H38: 667.3584642 | I38: 704.1291786 | J38: 759.1305495 | K38: 838.5715895 | L38: 906.8193172 | M38: 997.1414513 | N38: 1035.71706 | O38: 1090.392822 | P38: 1199.489558 | Q38: 1314.071777 | R38: 1373.305814
D41: Melbourne
A42: Melbourne | B42: Couple | C42: 0 | D42: Couple | E42: 0 | F42: 539.7163422 | G42: 554.8060548 | H42: 574.3395147 | I42: 609.9825262 | J42: 663.2970281 | K42: 740.3017406 | L42: 806.456502 | M42: 894.0085408 | N42: 931.4011571 | O42: 984.4001637 | P42: 1090.15102 | Q42: 1201.219275 | R42: 1258.636561
A43: Melbourne | B43: Couple | C43: 1 | D43: Couple with 1 child | E43: 0 | F43: 0 | G43: 636.3542261 | H43: 655.9345874 | I43: 691.6631398 | J43: 745.1055702 | K43: 822.2950693 | L43: 888.6085444 | M43: 976.3707164 | N43: 1013.853008 | O43: 1066.97925 | P43: 1172.983875 | Q43: 1284.318657 | R43: 1341.873727
A44: Melbourne | B44: Couple | C44: 2 | D44: Couple with 2 children | E44: 0 | F44: 0 | G44: 701.8130622 | H44: 721.3785182 | I44: 757.0798635 | J44: 810.4815931 | K44: 887.612369 | L44: 953.8753636 | M44: 1041.570728 | N44: 1079.024468 | O44: 1132.110268 | P44: 1238.034216 | Q44: 1349.28421 | R44: 1406.795503
A45: Melbourne | B45: Couple | C45: 3 and above | D45: Couple with 3 children | E45: 0 | F45: 0 | G45: 0 | H45: 786.7384778 | I45: 822.4391196 | J45: 875.8399383 | K45: 952.9691806 | L45: 1019.23092 | M45: 1106.924624 | N45: 1144.377728 | O45: 1197.462468 | P45: 1303.38441 | Q45: 1414.632297 | R45: 1472.142464
A47: Melbourne | B47: Single | C47: 0 | D47: Single person | E47: 279.167945 | F47: 293.8764825 | G47: 308.9937413 | H47: 328.562849 | I47: 364.270916 | J47: 417.6827453 | K47: 494.8280064 | L47: 561.1034767 | M47: 648.8153513 | N47: 686.27618 | O47: 739.3719201 | P47: 845.3158104 | Q47: 956.5868227 | R47: 1014.108907
A48: Melbourne | B48: Single | C48: 1 | D48: Single parent with 1 child | E48: 0 | F48: 386.2438633 | G48: 401.3307522 | H48: 420.8605511 | I48: 456.4968823 | J48: 509.8013919 | K48: 586.7917084 | L48: 652.9340437 | M48: 740.4696914 | N48: 777.855245 | O48: 830.8443366 | P48: 936.5754274 | Q48: 1047.622829 | R48: 1105.029391
A49: Melbourne | B49: Single | C49: 2 | D49: Single parent with 2 children | E49: 0 | F49: 500.3741163 | G49: 515.6168865 | H49: 535.3485411 | I49: 571.3531604 | J49: 625.2085383 | K49: 702.9944642 | L49: 769.8203295 | M49: 858.2606211 | N49: 896.0325122 | O49: 949.5692493 | P49: 1056.392967 | Q49: 1168.58801 | R49: 1226.587796
A50: Melbourne | B50: Single | C50: 3 and above | D50: Single parent with 3 children | E50: 0 | F50: 0 | G50: 639.0701529 | H50: 659.2216797 | I50: 695.9924035 | J50: 750.9936993 | K50: 830.4346924 | L50: 898.6824482 | M50: 989.0045636 | N50: 1027.580134 | O50: 1082.256047 | P50: 1191.352689 | Q50: 1305.935021 | R50: 1365.16887
D53: Balance of VIC
A54: Balance of VIC | B54: Couple | C54: 0 | D54: Couple | E54: 0 | F54: 576.4676009 | G54: 591.5573226 | H54: 611.0907734 | I54: 646.733794 | J54: 700.0482959 | K54: 777.0530084 | L54: 843.2077334 | M54: 930.7598086 | N54: 968.1524249 | O54: 1021.151413 | P54: 1126.902288 | Q54: 1237.970506 | R54: 1295.387829
A55: Balance of VIC | B55: Couple | C55: 1 | D55: Couple with 1 child | E55: 0 | F55: 0 | G55: 673.193676 | H55: 692.7740464 | I55: 728.5025897 | J55: 781.9449927 | K55: 859.1345283 | L55: 925.4480034 | M55: 1013.210175 | N55: 1050.692449 | O55: 1103.818691 | P55: 1209.823334 | Q55: 1321.158116 | R55: 1378.713186
A56: Balance of VIC | B56: Couple | C56: 2 | D56: Couple with 2 children | E56: 0 | F56: 0 | G56: 738.6245049 | H56: 758.1899244 | I56: 793.8912332 | J56: 847.2929902 | K56: 924.4237661 | L56: 990.686779 | M56: 1078.382125 | N56: 1115.835884 | O56: 1168.921684 | P56: 1274.845631 | Q56: 1386.095625 | R56: 1443.606882
A57: Balance of VIC | B57: Couple | C57: 3 and above | D57: Couple with 3 children | E57: 0 | F57: 0 | G57: 0 | H57: 823.5491961 | I57: 859.2498197 | J57: 912.6506566 | K57: 989.7798806 | L57: 1056.041639 | M57: 1143.735324 | N57: 1181.188446 | O57: 1234.27315 | P57: 1340.195092 | Q57: 1451.443015 | R57: 1508.953183
G58: =G56*52 -> 38408.47425 | H58: =ROUND(G56,0)*52 -> 38428
A59: Balance of VIC | B59: Single | C59: 0 | D59: Single person | E59: 315.9862864 | F59: 330.694824 | G59: 345.8120827 | H59: 365.3811905 | I59: 401.0892802 | J59: 454.5010913 | K59: 531.6463524 | L59: 597.9218227 | M59: 685.6336973 | N59: 723.094526 | O59: 776.1902479 | P59: 882.1341382 | Q59: 993.4051687 | R59: 1050.927253
A60: Balance of VIC | B60: Single | C60: 1 | D60: Single parent with 1 child | E60: 0 | F60: 422.9882385 | G60: 438.075132 | H60: 457.6049218 | I60: 493.241253 | J60: 546.5457626 | K60: 623.5360791 | L60: 689.6784053 | M60: 777.2140712 | N60: 814.5996066 | O60: 867.5887164 | P60: 973.3197344 | Q60: 1084.367209 | R60: 1141.773734
A61: Balance of VIC | B61: Single | C61: 2 | D61: Single parent with 2 children | E61: 0 | F61: 537.498226 | G61: 552.740987 | H61: 572.4726508 | I61: 608.4772609 | J61: 662.3326388 | K61: 740.1185739 | L61: 806.9444391 | M61: 895.3847308 | N61: 933.1566219 | O61: 986.693359 | P61: 1093.517077 | Q61: 1205.712083 | R61: 1263.711905
A62: Balance of VIC | B62: Single | C62: 3 and above | D62: Single parent with 3 children | E62: 0 | F62: 0 | G62: 676.984159 | H62: 697.135714 | I62: 733.906419 | J62: 788.9077148 | K62: 868.3487267 | L62: 936.5964919 | M62: 1026.918588 | N62: 1065.494178 | O62: 1120.170072 | P62: 1229.266789 | Q62: 1343.848971 | R62: 1403.082933
D65: Brisbane
A66: Brisbane | B66: Couple | C66: 0 | D66: Couple | E66: 0 | F66: 510.9373128 | G66: 526.0269981 | H66: 545.5604853 | I66: 581.2034968 | J66: 634.5180077 | K66: 711.5227203 | L66: 777.6774453 | M66: 865.2295205 | N66: 902.622064 | O66: 955.6211252 | P66: 1061.371981 | Q66: 1172.440236 | R66: 1229.857523
A67: Brisbane | B67: Couple | C67: 1 | D67: Couple with 1 child | E67: 0 | F67: 0 | G67: 607.5061362 | H67: 627.0864611 | I67: 662.8150135 | J67: 716.257453 | K67: 793.4469521 | L67: 859.7604637 | M67: 947.5226357 | N67: 985.0049093 | O67: 1038.131078 | P67: 1144.135739 | Q67: 1255.470558 | R67: 1313.025628
A68: Brisbane | B68: Couple | C68: 2 | D68: Couple with 2 children | E68: 0 | F68: 0 | G68: 672.9869327 | H68: 692.5523522 | I68: 728.2536975 | J68: 781.6554545 | K68: 858.7862303 | L68: 925.049225 | M68: 1012.744589 | N68: 1050.19833 | O68: 1103.284057 | P68: 1209.208004 | Q68: 1320.458108 | R68: 1377.969364
A69: Brisbane | B69: Couple | C69: 3 and above | D69: Couple with 3 children | E69: 0 | F69: 0 | G69: 0 | H69: 757.9128577 | I69: 793.6135269 | J69: 847.0142726 | K69: 924.1435878 | L69: 990.4053277 | M69: 1078.099031 | N69: 1115.55208 | O69: 1168.636802 | P69: 1274.558817 | Q69: 1385.806704 | R69: 1443.316871
A71: Brisbane | B71: Single | C71: 0 | D71: Single person | E71: 250.3363723 | F71: 265.0449076 | G71: 280.1621663 | H71: 299.7312741 | I71: 335.4393501 | J71: 388.8511613 | K71: 465.9964223 | L71: 532.2719291 | M71: 619.9837673 | N71: 657.4445959 | O71: 710.5403543 | P71: 816.4842446 | Q71: 927.7551839 | R71: 985.2773046
A72: Brisbane | B72: Single | C72: 1 | D72: Single parent with 1 child | E72: 0 | F72: 357.4702095 | G72: 372.5570984 | H72: 392.0869156 | I72: 427.7232468 | J72: 481.0277563 | K72: 558.0180364 | L72: 624.1603626 | M72: 711.6960286 | N72: 749.0816003 | O72: 802.0706555 | P72: 907.8017099 | Q72: 1018.849221 | R72: 1076.255746
A73: Brisbane | B73: Single | C73: 2 | D73: Single parent with 2 children | E73: 0 | F73: 471.3030958 | G73: 486.5458936 | H73: 506.2775207 | I73: 542.2821308 | J73: 596.1375087 | K73: 673.9234254 | L73: 740.7493458 | M73: 829.1895822 | N73: 866.9615285 | O73: 920.4981921 | P73: 1027.321892 | Q73: 1139.517008 | R73: 1197.516793
A74: Brisbane | B74: Single | C74: 3 and above | D74: Single parent with 3 children | E74: 0 | F74: 0 | G74: 609.3806152 | H74: 629.5320669 | I74: 666.3027719 | J74: 721.3040678 | K74: 800.7450796 | L74: 868.9929575 | M74: 959.3149414 | N74: 997.8906062 | O74: 1052.566406 | P74: 1161.663048 | Q74: 1276.245418 | R74: 1335.479304
D77: Balance of QLD
A78: Balance of QLD | B78: Couple | C78: 0 | D78: Couple | E78: 0 | F78: 553.2311911 | G78: 568.3208672 | H78: 587.8543635 | I78: 623.497375 | J78: 676.8118769 | K78: 753.8165894 | L78: 819.9713144 | M78: 907.5233896 | N78: 944.9159331 | O78: 997.9149943 | P78: 1103.665887 | Q78: 1214.734105 | R78: 1272.151392
A79: Balance of QLD | B79: Couple | C79: 1 | D79: Couple with 1 child | E79: 0 | F79: 0 | G79: 649.9015062 | H79: 669.481831 | I79: 705.2103743 | J79: 758.6528138 | K79: 835.8423494 | L79: 902.1558245 | M79: 989.9179965 | N79: 1027.40027 | O79: 1080.526457 | P79: 1186.5311 | Q79: 1297.865919 | R79: 1355.420989
A80: Balance of QLD | B80: Couple | C80: 2 | D80: Couple with 2 children | E80: 0 | F80: 0 | G80: 715.3500204 | H80: 734.9154491 | I80: 770.6167944 | J80: 824.0185605 | K80: 901.1493363 | L80: 967.412331 | M80: 1055.107677 | N80: 1092.561436 | O80: 1145.647181 | P80: 1251.571165 | Q80: 1362.821195 | R80: 1420.332452
A81: Balance of QLD | B81: Couple | C81: 3 and above | D81: Couple with 3 children | E81: 0 | F81: 0 | G81: 0 | H81: 800.2751888 | I81: 835.9758307 | J81: 889.3765764 | K81: 966.5058916 | L81: 1032.767631 | M81: 1120.461335 | N81: 1157.914366 | O81: 1210.999161 | P81: 1316.921103 | Q81: 1428.16899 | R81: 1485.679194
A83: Balance of QLD | B83: Single | C83: 0 | D83: Single person | E83: 292.7074405 | F83: 307.4159803 | G83: 322.5332391 | H83: 342.1023468 | I83: 377.8104138 | J83: 431.2222249 | K83: 508.367486 | L83: 574.6429927 | M83: 662.3548674 | N83: 699.8156596 | O83: 752.9114361 | P83: 858.8553082 | Q83: 970.126284 | R83: 1027.648368
A84: Balance of QLD | B84: Single | C84: 1 | D84: Single parent with 1 child | E84: 0 | F84: 399.7561791 | G84: 414.843068 | H84: 434.3728579 | I84: 470.0091982 | J84: 523.3137077 | K84: 600.3039879 | L84: 666.4463049 | M84: 753.9819709 | N84: 791.3675608 | O84: 844.3566161 | P84: 950.0876522 | Q84: 1061.135163 | R84: 1118.541688
A85: Balance of QLD | B85: Single | C85: 2 | D85: Single parent with 2 children | E85: 0 | F85: 514.0260366 | G85: 529.2688436 | H85: 549.0004614 | I85: 585.0050807 | J85: 638.8604586 | K85: 716.6463845 | L85: 783.4722865 | M85: 871.9125781 | N85: 909.6844693 | O85: 963.2211329 | P85: 1070.044869 | Q85: 1182.239949 | R85: 1240.239734
A86: Balance of QLD | B86: Single | C86: 3 and above | D86: Single parent with 3 children | E86: 0 | F86: 0 | G86: 653.012592 | H86: 673.1640531 | I86: 709.9347675 | J86: 764.9360633 | K86: 844.377094 | L86: 912.6249437 | M86: 1002.94704 | N86: 1041.522574 | O86: 1096.198374 | P86: 1205.29511 | Q86: 1319.877404 | R86: 1379.111291
D89: Adelaide
A90: Adelaide | B90: Couple | C90: 0 | D90: Couple | E90: 0 | F90: 552.1220519 | G90: 567.2117735 | H90: 586.7452243 | I90: 622.3882449 | J90: 675.7027377 | K90: 752.7074502 | L90: 818.8621752 | M90: 906.4142868 | N90: 943.8068485 | O90: 996.8058369 | P90: 1102.556711 | Q90: 1213.625002 | R90: 1271.042289
A91: Adelaide | B91: Couple | C91: 1 | D91: Couple with 1 child | E91: 0 | F91: 0 | G91: 648.7897054 | H91: 668.3700394 | I91: 704.0985826 | J91: 757.5410678 | K91: 834.7305304 | L91: 901.0440055 | M91: 988.8061592 | N91: 1026.288524 | O91: 1079.414693 | P91: 1185.419336 | Q91: 1296.754082 | R91: 1354.309261
A92: Adelaide | B92: Couple | C92: 2 | D92: Couple with 2 children | E92: 0 | F92: 0 | G92: 714.2390751 | H92: 733.8045311 | I92: 769.5058491 | J92: 822.9076425 | K92: 900.0383454 | L92: 966.3013401 | M92: 1053.996704 | N92: 1091.450518 | O92: 1144.536263 | P92: 1250.460211 | Q92: 1361.710204 | R92: 1419.221534
A93: Adelaide | B93: Couple | C93: 3 and above | D93: Couple with 3 children | E93: 0 | F93: 0 | G93: 0 | H93: 799.164219 | I93: 834.8649338 | J93: 888.2656795 | K93: 965.3949218 | L93: 1031.656735 | M93: 1119.350438 | N93: 1156.803487 | O93: 1209.888191 | P93: 1315.810133 | Q93: 1427.058129 | R93: 1484.568297
A95: Adelaide | B95: Single | C95: 0 | D95: Single person | E95: 291.5962838 | F95: 306.3048395 | G95: 321.42208 | H95: 340.991206 | I95: 376.6992775 | J95: 430.1111069 | K95: 507.256368 | L95: 573.5318473 | M95: 661.2437038 | N95: 698.7045142 | O95: 751.8002725 | P95: 857.7441629 | Q95: 969.0151569 | R95: 1026.537241
A96: Adelaide | B96: Single | C96: 1 | D96: Single parent with 1 child | E96: 0 | F96: 398.6472523 | G96: 413.7341458 | H96: 433.2639356 | I96: 468.9002669 | J96: 522.2047764 | K96: 599.1950656 | L96: 665.3374282 | M96: 752.8730578 | N96: 790.2586295 | O96: 843.2477211 | P96: 948.9787573 | Q96: 1060.026195 | R96: 1117.432721
A97: Adelaide | B97: Single | C97: 2 | D97: Single parent with 2 children | E97: 0 | F97: 512.9056543 | G97: 528.1484521 | H97: 547.8800792 | I97: 583.8846893 | J97: 637.7401039 | K97: 715.5260299 | L97: 782.3518951 | M97: 870.7921867 | N97: 908.5641146 | O97: 962.1007966 | P97: 1068.924514 | Q97: 1181.119521 | R97: 1239.11938
A98: Adelaide | B98: Single | C98: 3 and above | D98: Single parent with 3 children | E98: 0 | F98: 0 | G98: 651.8683519 | H98: 672.0198317 | I98: 708.7905367 | J98: 763.7919077 | K98: 843.2329289 | L98: 911.4806566 | M98: 1001.802791 | N98: 1040.378418 | O98: 1095.054218 | P98: 1204.150916 | Q98: 1318.733136 | R98: 1377.967172
D101: Balance of SA
A102: Balance of SA | B102: Couple | C102: 0 | D102: Couple | E102: 0 | F102: 512.5904178 | G102: 527.6801303 | H102: 547.2135902 | I102: 582.8566017 | J102: 636.1711036 | K102: 713.1758161 | L102: 779.3305775 | M102: 866.8826163 | N102: 904.2752326 | O102: 957.2742392 | P102: 1063.025095 | Q102: 1174.09335 | R102: 1231.510637
A103: Balance of SA | B103: Couple | C103: 1 | D103: Couple with 1 child | E103: 0 | F103: 0 | G103: 609.1632081 | H103: 628.7435694 | I103: 664.4721218 | J103: 717.9145522 | K103: 795.1040513 | L103: 861.4175264 | M103: 949.1796984 | N103: 986.6619902 | O103: 1039.788232 | P103: 1145.792857 | Q103: 1257.127639 | R103: 1314.682709
A104: Balance of SA | B104: Couple | C104: 2 | D104: Couple with 2 children | E104: 0 | F104: 0 | G104: 674.6427431 | H104: 694.2081991 | I104: 729.9095535 | J104: 783.3113105 | K104: 860.4420499 | L104: 926.7050445 | M104: 1014.400408 | N104: 1051.854149 | O104: 1104.939949 | P104: 1210.863897 | Q104: 1322.113891 | R104: 1379.625183
A105: Balance of SA | B105: Couple | C105: 3 and above | D105: Couple with 3 children | E105: 0 | F105: 0 | G105: 0 | H105: 759.5686732 | I105: 795.2693151 | J105: 848.6701337 | K105: 925.799376 | L105: 992.0611158 | M105: 1079.754819 | N105: 1117.20785 | O105: 1170.292664 | P105: 1276.214605 | Q105: 1387.462492 | R105: 1444.97266
A107: Balance of SA | B107: Single | C107: 0 | D107: Single person | E107: 251.9925104 | F107: 266.701048 | G107: 281.8183067 | H107: 301.3874145 | I107: 337.0954814 | J107: 390.5073108 | K107: 467.6525719 | L107: 533.9280421 | M107: 621.6399168 | N107: 659.1007454 | O107: 712.1964855 | P107: 818.1403759 | Q107: 929.4113881 | R107: 986.9334724
A108: Balance of SA | B108: Single | C108: 1 | D108: Single parent with 1 child | E108: 0 | F108: 359.123041 | G108: 374.2099117 | H108: 393.7397107 | I108: 429.3760419 | J108: 482.6805514 | K108: 559.6708679 | L108: 625.8132032 | M108: 713.348851 | N108: 750.7344045 | O108: 803.7234961 | P108: 909.4545505 | Q108: 1020.501989 | R108: 1077.90855
A109: Balance of SA | B109: Single | C109: 2 | D109: Single parent with 2 children | E109: 0 | F109: 472.9729991 | G109: 488.2157693 | H109: 507.9474331 | I109: 543.9520433 | J109: 597.8074211 | K109: 675.593347 | L109: 742.4192123 | M109: 830.8595039 | N109: 868.6314318 | O109: 922.1681321 | P109: 1028.99185 | Q109: 1141.186893 | R109: 1199.186678
A110: Balance of SA | B110: Single | C110: 3 and above | D110: Single parent with 3 children | E110: 0 | F110: 0 | G110: 611.0860032 | H110: 631.2375488 | I110: 668.0082538 | J110: 723.0095497 | K110: 802.4505427 | L110: 870.6982985 | M110: 961.0204139 | N110: 999.5960599 | O110: 1054.271898 | P110: 1163.368577 | Q110: 1277.950871 | R110: 1337.184721
D113: Perth
A114: Perth | B114: Couple | C114: 0 | D114: Couple | E114: 0 | F114: 473.684058 | G114: 488.7737796 | H114: 508.3072305 | I114: 543.9502511 | J114: 597.2647529 | K114: 674.2694563 | L114: 740.4241995 | M114: 827.9762565 | N114: 865.3688546 | O114: 918.3678794 | P114: 1024.118754 | Q114: 1135.186972 | R114: 1192.604259
A115: Perth | B115: Couple | C115: 1 | D115: Couple with 1 child | E115: 0 | F115: 0 | G115: 570.1634855 | H115: 589.743856 | I115: 625.4723628 | J115: 678.9148388 | K115: 756.104347 | L115: 822.4178221 | M115: 910.1799759 | N115: 947.6622677 | O115: 1000.78851 | P115: 1106.793152 | Q115: 1218.127899 | R115: 1275.683005
A116: Perth | B116: Couple | C116: 2 | D116: Couple with 2 children | E116: 0 | F116: 0 | G116: 635.6727087 | H116: 655.2381738 | I116: 690.9395191 | J116: 744.3412761 | K116: 821.4720154 | L116: 887.7350101 | M116: 975.430374 | N116: 1012.884115 | O116: 1065.969915 | P116: 1171.893881 | Q116: 1283.143874 | R116: 1340.655131
A117: Perth | B117: Couple | C117: 3 and above | D117: Couple with 3 children | E117: 0 | F117: 0 | G117: 0 | H117: 720.5993859 | I117: 756.3000551 | J117: 809.7007644 | K117: 886.8300796 | L117: 953.0918194 | M117: 1040.785523 | N117: 1078.238554 | O117: 1131.323349 | P117: 1237.245291 | Q117: 1348.493214 | R117: 1406.003381
A119: Perth | B119: Single | C119: 0 | D119: Single person | E119: 213.0151435 | F119: 227.7236811 | G119: 242.8409216 | H119: 262.4100476 | I119: 298.1181191 | J119: 351.5299302 | K119: 428.6752095 | L119: 494.9506889 | M119: 582.6625453 | N119: 620.1233922 | O119: 673.2191141 | P119: 779.1630044 | Q119: 890.4339985 | R119: 947.9560827
A120: Perth | B120: Single | C120: 1 | D120: Single parent with 1 child | E120: 0 | F120: 320.2239594 | G120: 335.3108484 | H120: 354.8406428 | I120: 390.476974 | J120: 443.7814926 | K120: 520.7717637 | L120: 586.9141353 | M120: 674.4497649 | N120: 711.8353366 | O120: 764.8244283 | P120: 870.5554826 | Q120: 981.6029389 | R120: 1039.009464
A121: Perth | B121: Single | C121: 2 | D121: Single parent with 2 children | E121: 0 | F121: 433.6719064 | G121: 448.9147134 | H121: 468.6463313 | I121: 504.6509414 | J121: 558.506356 | K121: 636.2922819 | L121: 703.1181472 | M121: 791.5584388 | N121: 829.3303667 | O121: 882.8670487 | P121: 989.6908033 | Q121: 1101.88581 | R121: 1159.885595
A122: Perth | B122: Single | C122: 3 and above | D122: Single parent with 3 children | E122: 0 | F122: 0 | G122: 570.9487164 | H122: 591.1001728 | I122: 627.8708778 | J122: 682.8722393 | K122: 762.3132794 | L122: 830.5609976 | M122: 920.8831318 | N122: 959.458759 | O122: 1014.134559 | P122: 1123.231314 | Q122: 1237.813514 | R122: 1297.047401
D125: Balance of WA
A126: Balance of WA | B126: Couple | C126: 0 | D126: Couple | E126: 0 | F126: 524.1709539 | G126: 539.2606664 | H126: 558.7941264 | I126: 594.4371378 | J126: 647.7516397 | K126: 724.7563522 | L126: 790.9111137 | M126: 878.4631524 | N126: 915.8557687 | O126: 968.8547571 | P126: 1074.605632 | Q126: 1185.673886 | R126: 1243.091173
A127: Balance of WA | B127: Couple | C127: 1 | D127: Couple with 1 child | E127: 0 | F127: 0 | G127: 620.7715337 | H127: 640.3518951 | I127: 676.0804384 | J127: 729.5228779 | K127: 806.712377 | L127: 873.0258521 | M127: 960.7880241 | N127: 998.2702977 | O127: 1051.396558 | P127: 1157.401182 | Q127: 1268.735965 | R127: 1326.291035
A128: Balance of WA | B128: Couple | C128: 2 | D128: Couple with 2 children | E128: 0 | F128: 0 | G128: 686.2422229 | H128: 705.807688 | I128: 741.5090424 | J128: 794.910763 | K128: 872.0415388 | L128: 938.3045335 | M128: 1025.999879 | N128: 1063.453638 | O128: 1116.539438 | P128: 1222.463386 | Q128: 1333.71338 | R128: 1391.224672
A129: Balance of WA | B129: Couple | C129: 3 and above | D129: Couple with 3 children | E129: 0 | F129: 0 | G129: 0 | H129: 771.1679425 | I129: 806.8686573 | J129: 860.269403 | K129: 937.3986453 | L129: 1003.660385 | M129: 1091.354088 | N129: 1128.807193 | O129: 1181.891933 | P129: 1287.813838 | Q129: 1399.061762 | R129: 1456.571929
A131: Balance of WA | B131: Single | C131: 0 | D131: Single person | E131: 263.5941833 | F131: 278.3027208 | G131: 293.4199796 | H131: 312.9890873 | I131: 348.6971542 | J131: 402.1089836 | K131: 479.2542447 | L131: 545.5297149 | M131: 633.2415896 | N131: 670.7024183 | O131: 723.7981584 | P131: 829.7420305 | Q131: 941.013061 | R131: 998.5351452
A132: Balance of WA | B132: Single | C132: 1 | D132: Single parent with 1 child | E132: 0 | F132: 370.7014066 | G132: 385.7882774 | H132: 405.3180672 | I132: 440.9544075 | J132: 494.258917 | K132: 571.2492245 | L132: 637.3915689 | M132: 724.9272166 | N132: 762.3127701 | O132: 815.3018618 | P132: 921.0329162 | Q132: 1032.080354 | R132: 1089.486879
A133: Balance of WA | B133: Single | C133: 2 | D133: Single parent with 2 children | E133: 0 | F133: 484.6710198 | G133: 499.91379 | H133: 519.6454447 | I133: 555.650064 | J133: 609.5054418 | K133: 687.2913678 | L133: 754.117233 | M133: 842.5575246 | N133: 880.3294525 | O133: 933.8661529 | P133: 1040.689871 | Q133: 1152.884877 | R133: 1210.884699
A134: Balance of WA | B134: Single | C134: 3 and above | D134: Single parent with 3 children | E134: 0 | F134: 0 | G134: 623.0329308 | H134: 643.184467 | I134: 679.9551814 | J134: 734.9564772 | K134: 814.3974797 | L134: 882.6452261 | M134: 972.9673415 | N134: 1011.542988 | O134: 1066.218825 | P134: 1175.315505 | Q134: 1289.897724 | R134: 1349.131686
D137: Hobart
A138: Hobart | B138: Couple | C138: 0 | D138: Couple | E138: 0 | F138: 563.7215384 | G138: 578.8112601 | H138: 598.3447109 | I138: 633.9877224 | J138: 687.3022242 | K138: 764.3069368 | L138: 830.4617164 | M138: 918.0137734 | N138: 955.4063351 | O138: 1008.405305 | P138: 1114.15618 | Q138: 1225.224507 | R138: 1282.641794
A139: Hobart | B139: Couple | C139: 1 | D139: Couple with 1 child | E139: 0 | F139: 0 | G139: 660.417027 | H139: 679.9973975 | I139: 715.7259499 | J139: 769.1683894 | K139: 846.357852 | L139: 912.6714001 | M139: 1000.433481 | N139: 1037.915846 | O139: 1091.042033 | P139: 1197.046639 | Q139: 1308.381495 | R139: 1365.936564
A140: Hobart | B140: Couple | C140: 2 | D140: Couple with 2 children | E140: 0 | F140: 0 | G140: 725.8575456 | H140: 745.4230016 | I140: 781.124356 | J140: 834.526113 | K140: 911.6568159 | L140: 977.9198835 | M140: 1065.615174 | N140: 1103.069006 | O140: 1156.154715 | P140: 1262.078663 | Q140: 1373.328766 | R140: 1430.840022
A141: Hobart | B141: Couple | C141: 3 and above | D141: Couple with 3 children | E141: 0 | F141: 0 | G141: 0 | H141: 810.7824694 | I141: 846.4831842 | J141: 899.8839299 | K141: 977.0132451 | L141: 1043.274985 | M141: 1130.96867 | N141: 1168.42172 | O141: 1221.50646 | P141: 1327.428401 | Q141: 1438.676361 | R141: 1496.186529
A143: Hobart | B143: Single | C143: 0 | D143: Single person | E143: 303.2169599 | F143: 317.9254974 | G143: 333.0427562 | H143: 352.6118685 | I143: 388.3199354 | J143: 441.7317648 | K143: 518.8770168 | L143: 585.1525052 | M143: 672.8643617 | N143: 710.3252086 | O143: 763.4209304 | P143: 869.3648208 | Q143: 980.6357966 | R143: 1038.157917
A144: Hobart | B144: Single | C144: 1 | D144: Single parent with 1 child | E144: 0 | F144: 410.2445649 | G144: 425.3314584 | H144: 444.8612482 | I144: 480.4975794 | J144: 533.8020981 | K144: 610.7923782 | L144: 676.9347408 | M144: 764.4704067 | N144: 801.8559421 | O144: 854.8450337 | P144: 960.5760881 | Q144: 1071.62349 | R144: 1129.030051
A145: Hobart | B145: Single | C145: 2 | D145: Single parent with 2 children | E145: 0 | F145: 524.6228178 | G145: 539.8656248 | H145: 559.5972794 | I145: 595.6018895 | J145: 649.4572674 | K145: 727.2431933 | L145: 794.0690585 | M145: 882.5093502 | N145: 920.2812781 | O145: 973.8179417 | P145: 1080.64166 | Q145: 1192.836776 | R145: 1250.836561
A146: Hobart | B146: Single | C146: 3 and above | D146: Single parent with 3 children | E146: 0 | F146: 0 | G146: 663.8348483 | H146: 683.9863845 | I146: 720.7570895 | J146: 775.7583759 | K146: 855.1994066 | L146: 923.4471342 | M146: 1013.769231 | N146: 1052.344896 | O146: 1107.020658 | P146: 1216.117338 | Q146: 1330.69982 | R146: 1389.933669
D149: Balance of TAS
A150: Balance of TAS | B150: Couple | C150: 0 | D150: Couple | E150: 0 | F150: 557.985464 | G150: 573.0751765 | H150: 592.6086365 | I150: 628.251648 | J150: 681.5661498 | K150: 758.5708987 | L150: 824.7256238 | M150: 912.2776989 | N150: 949.6702424 | O150: 1002.669231 | P150: 1108.420178 | Q150: 1219.488433 | R150: 1276.905719
A151: Balance of TAS | B151: Couple | C151: 1 | D151: Couple with 1 child | E151: 0 | F151: 0 | G151: 654.6672243 | H151: 674.2475492 | I151: 709.9760924 | J151: 763.4185319 | K151: 840.6080675 | L151: 906.9215426 | M151: 994.6837146 | N151: 1032.165988 | O151: 1085.292157 | P151: 1191.2968 | Q151: 1302.631656 | R151: 1360.186725
A152: Balance of TAS | B152: Couple | C152: 2 | D152: Couple with 2 children | E152: 0 | F152: 0 | G152: 720.1121107 | H152: 739.6775394 | I152: 775.3788938 | J152: 828.7806508 | K152: 905.9114266 | L152: 972.1744213 | M152: 1059.869767 | N152: 1097.323526 | O152: 1150.409253 | P152: 1256.333201 | Q152: 1367.583267 | R152: 1425.09456
A153: Balance of TAS | B153: Couple | C153: 3 and above | D153: Couple with 3 children | E153: 0 | F153: 0 | G153: 0 | H153: 805.0371889 | I153: 840.7378308 | J153: 894.1385765 | K153: 971.2678917 | L153: 1037.529632 | M153: 1125.223335 | N153: 1162.676366 | O153: 1215.761106 | P153: 1321.683012 | Q153: 1432.931008 | R153: 1490.441175
A155: Balance of TAS | B155: Single | C155: 0 | D155: Single person | E155: 297.4704114 | F155: 312.1789672 | G155: 327.2962077 | H155: 346.8653337 | I155: 382.5734006 | J155: 435.9852118 | K155: 513.1304728 | L155: 579.4059431 | M155: 667.1178178 | N155: 704.5786464 | O155: 757.6743865 | P155: 863.6183133 | Q155: 974.8892527 | R155: 1032.411337
A156: Balance of TAS | B156: Single | C156: 1 | D156: Single parent with 1 child | E156: 0 | F156: 404.5095609 | G156: 419.5964499 | H156: 439.1262397 | I156: 474.76258 | J156: 528.067126 | K156: 605.057397 | L156: 671.1997414 | M156: 758.7353891 | N156: 796.1209791 | O156: 849.1100343 | P156: 954.8410887 | Q156: 1065.88849 | R156: 1123.295088
A157: Balance of TAS | B157: Single | C157: 2 | D157: Single parent with 2 children | E157: 0 | F157: 518.8285784 | G157: 534.0713486 | H157: 553.8030032 | I157: 589.8076226 | J157: 643.6630004 | K157: 721.4489263 | L157: 788.2747916 | M157: 876.7150832 | N157: 914.4870111 | O157: 968.0236747 | P157: 1074.847393 | Q157: 1187.042472 | R157: 1245.042294
A158: Balance of TAS | B158: Single | C158: 3 and above | D158: Single parent with 3 children | E158: 0 | F158: 0 | G158: 657.9172833 | H158: 678.0688195 | I158: 714.8395339 | J158: 769.8407921 | K158: 849.2818322 | L158: 917.5295786 | M158: 1007.851694 | N158: 1046.427302 | O158: 1101.103102 | P158: 1210.199782 | Q158: 1324.782189 | R158: 1384.016076
D161: ACT & NT
A162: ACT & NT | B162: Couple | C162: 0 | D162: Couple | E162: 0 | F162: 568.9466148 | G162: 584.0363364 | H162: 603.5697964 | I162: 639.2128079 | J162: 692.5273097 | K162: 769.5320222 | L162: 835.6867837 | M162: 923.2388588 | N162: 960.6314023 | O162: 1013.630391 | P162: 1119.381265 | Q162: 1230.449593 | R162: 1287.866879
A163: ACT & NT | B163: Couple | C163: 1 | D163: Couple with 1 child | E163: 0 | F163: 0 | G163: 665.654651 | H163: 685.2350124 | I163: 720.9635556 | J163: 774.4059951 | K163: 851.5954577 | L163: 917.9090058 | M163: 1005.671105 | N163: 1043.153451 | O163: 1096.27962 | P163: 1202.284263 | Q163: 1313.619119 | R163: 1371.174188
A164: ACT & NT | B164: Couple | C164: 2 | D164: Couple with 2 children | E164: 0 | F164: 0 | G164: 731.0911734 | H164: 750.6566385 | I164: 786.3579746 | J164: 839.7597499 | K164: 916.8904528 | L164: 983.1535204 | M164: 1070.848866 | N164: 1108.302607 | O164: 1161.388352 | P164: 1267.3123 | Q164: 1378.562367 | R164: 1436.073659
A165: ACT & NT | B165: Couple | C165: 3 and above | D165: Couple with 3 children | E165: 0 | F165: 0 | G165: 0 | H165: 816.0160072 | I165: 851.716722 | J165: 905.1174677 | K165: 982.2467829 | L165: 1048.508523 | M165: 1136.202208 | N165: 1173.655257 | O165: 1226.739997 | P165: 1332.661903 | Q165: 1443.909899 | R165: 1501.420067
A167: ACT & NT | B167: Single | C167: 0 | D167: Single person | E167: 308.451573 | F167: 323.1601106 | G167: 338.2773693 | H167: 357.8464816 | I167: 393.5545485 | J167: 446.9663779 | K167: 524.111639 | L167: 590.3871093 | M167: 678.0989839 | N167: 715.5598126 | O167: 768.6555345 | P167: 874.599443 | Q167: 985.8704188 | R167: 1043.392503
A168: ACT & NT | B168: Single | C168: 1 | D168: Single parent with 1 child | E168: 0 | F168: 415.468662 | G168: 430.5555554 | H168: 450.0853453 | I168: 485.7216856 | J168: 539.0261951 | K168: 616.0165026 | L168: 682.1588287 | M168: 769.6944947 | N168: 807.0800482 | O168: 860.0691399 | P168: 965.8001943 | Q168: 1076.847596 | R168: 1134.254121
A169: ACT & NT | B169: Single | C169: 2 | D169: Single parent with 2 children | E169: 0 | F169: 529.9009394 | G169: 545.1437096 | H169: 564.8753642 | I169: 600.8799743 | J169: 654.7353614 | K169: 732.5212873 | L169: 799.3471525 | M169: 887.7874442 | N169: 925.5593721 | O169: 979.0960357 | P169: 1085.919754 | Q169: 1198.114833 | R169: 1256.114655
A170: ACT & NT | B170: Single | C170: 3 and above | D170: Single parent with 3 children | E170: 0 | F170: 0 | G170: 669.2252385 | H170: 689.3767747 | I170: 726.1474703 | J170: 781.1487849 | K170: 860.5897874 | L170: 928.8375526 | M170: 1019.159649 | N170: 1057.735295 | O170: 1112.411058 | P170: 1221.507737 | Q170: 1336.090144 | R170: 1395.324106

Sheet Branding (hidden)
C2: Form Logo
C7: Form Colors
C9: Enter the Hex Code | F9: Color
C11: Header 1 | D11: #1c355e
C13: Header 2 | D13: #4cc2e1
C15: Data Entry | D15: #FFFFFF

Sheet Postcodes (hidden)
A1: From | B1: To | C1: State | D1: Location
A2: 200 | B2: 799 | C2: ACT | D2: Non Metro
A3: 800 | B3: 820 | C3: NT | D3: Metro
A4: 821 | B4: 827 | C4: NT | D4: Non Metro
A5: 828 | B5: 832 | C5: NT | D5: Metro
A6: 833 | B6: 999 | C6: NT | D6: Non Metro
A7: 1000 | B7: 1920 | C7: NSW | D7: Metro
A8: 1921 | B8: 1999 | C8: NSW | D8: Non Metro
A9: 2000 | B9: 2005 | C9: NSW | D9: Inner City
A10: 2006 | B10: 2249 | C10: NSW | D10: Metro
A11: 2250 | B11: 2557 | C11: NSW | D11: Non Metro
A12: 2558 | B12: 2574 | C12: NSW | D12: Metro
A13: 2575 | B13: 2599 | C13: NSW | D13: Non Metro
A14: 2600 | B14: 2639 | C14: ACT | D14: Metro
A15: 2640 | B15: 2739 | C15: NSW | D15: Non Metro
A16: 2740 | B16: 2786 | C16: NSW | D16: Metro
A17: 2787 | B17: 2899 | C17: NSW | D17: Non Metro
A18: 2900 | B18: 2920 | C18: ACT | D18: Metro
A19: 2921 | B19: 2999 | C19: NSW | D19: Non Metro
A20: 3000 | B20: 3010 | C20: VIC | D20: Inner City
A21: 3011 | B21: 3216 | C21: VIC | D21: Metro
A22: 3217 | B22: 3334 | C22: VIC | D22: Non Metro
A23: 3335 | B23: 3341 | C23: VIC | D23: Metro
A24: 3342 | B24: 3424 | C24: VIC | D24: Non Metro
A25: 3425 | B25: 3443 | C25: VIC | D25: Metro
A26: 3444 | B26: 3749 | C26: VIC | D26: Non Metro
A27: 3750 | B27: 3811 | C27: VIC | D27: Metro
A28: 3812 | B28: 3909 | C28: VIC | D28: Non Metro
A29: 3910 | B29: 3920 | C29: VIC | D29: Metro
A30: 3921 | B30: 3925 | C30: VIC | D30: Non Metro
A31: 3926 | B31: 3944 | C31: VIC | D31: Metro
A32: 3945 | B32: 3971 | C32: VIC | D32: Non Metro
A33: 3972 | B33: 3978 | C33: VIC | D33: Metro
A34: 3979 | B34: 3979 | C34: VIC | D34: Non Metro
A35: 3980 | B35: 3983 | C35: VIC | D35: Metro
A36: 3984 | B36: 3999 | C36: VIC | D36: Non Metro
A37: 4000 | B37: 4004 | C37: QLD | D37: Inner City
A38: 4005 | B38: 4209 | C38: QLD | D38: Metro
A39: 4210 | B39: 4299 | C39: QLD | D39: Non Metro
A40: 4300 | B40: 4306 | C40: QLD | D40: Metro
A41: 4307 | B41: 4499 | C41: QLD | D41: Non Metro
A42: 4500 | B42: 4549 | C42: QLD | D42: Metro
A43: 4550 | B43: 4999 | C43: QLD | D43: Non Metro
A44: 5000 | B44: 5005 | C44: SA | D44: Inner City
A45: 5006 | B45: 5199 | C45: SA | D45: Metro
A46: 5200 | B46: 5799 | C46: SA | D46: Non Metro
A47: 5800 | B47: 5999 | C47: SA | D47: Metro
A48: 6000 | B48: 6004 | C48: WA | D48: Inner City
A49: 6005 | B49: 6214 | C49: WA | D49: Metro
A50: 6215 | B50: 6799 | C50: WA | D50: Non Metro
A51: 6800 | B51: 6999 | C51: WA | D51: Metro
A52: 7000 | B52: 7003 | C52: TAS | D52: Inner City
A53: 7004 | B53: 7199 | C53: TAS | D53: Metro
A54: 7200 | B54: 7799 | C54: TAS | D54: Non Metro
A55: 7800 | B55: 7899 | C55: TAS | D55: Metro
A56: 7900 | B56: 7999 | C56: TAS | D56: Non Metro
A57: 8000 | B57: 8399 | C57: VIC | D57: Inner City
A58: 8400 | B58: 8899 | C58: VIC | D58: Metro
A59: 8900 | B59: 8999 | C59: VIC | D59: Non Metro
A60: 9000 | B60: 9299 | C60: QLD | D60: Inner City
A61: 9300 | B61: 9399 | C61: QLD | D61: Non Metro
A62: 9400 | B62: 9596 | C62: QLD | D62: Metro
A63: 9597 | B63: 9597 | C63: QLD | D63: Non Metro

Sheet Calculations (hidden)
B2: Applicants | C2: Total | D2: 1 | E2: 2 | F2: 3 | G2: 4 | H2: 5 | I2: 6 | K2: Calculation Notes
B3: PAYG Gross | C3: =IF(vApplicants<=0,0,SUM(OFFSET($D3,0,0,1,vApplicants))) -> 150000 | D3: =OFFSET('Serviceability Calculator'!$C28,(D$2-1)*vApplicant_Rows,0) -> 150000 | E3: =OFFSET('Serviceability Calculator'!$C28,(E$2-1)*vApplicant_Rows,0) -> 0 | F3: =OFFSET('Serviceability Calculator'!$C28,(F$2-1)*vApplicant_Rows,0) -> 0 | G3: =OFFSET('Serviceability Calculator'!$C28,(G$2-1)*vApplicant_Rows,0) -> 0 | H3: =OFFSET('Serviceability Calculator'!$C28,(H$2-1)*vApplicant_Rows,0) -> 0 | I3: =OFFSET('Serviceability Calculator'!$C28,(I$2-1)*vApplicant_Rows,0) -> 0
B4: Self Employed Income | C4: 0 | D4: =OFFSET('Serviceability Calculator'!$C34,(D$2-1)*vApplicant_Rows,0) -> 0 | E4: =OFFSET('Serviceability Calculator'!$C34,(E$2-1)*vApplicant_Rows,0) -> 0 | F4: =OFFSET('Serviceability Calculator'!$C34,(F$2-1)*vApplicant_Rows,0) -> 0 | G4: =OFFSET('Serviceability Calculator'!$C34,(G$2-1)*vApplicant_Rows,0) -> 0 | H4: =OFFSET('Serviceability Calculator'!$C34,(H$2-1)*vApplicant_Rows,0) -> 0 | I4: =OFFSET('Serviceability Calculator'!$C34,(I$2-1)*vApplicant_Rows,0) -> 0 | K4: Self Employed Net Profit (Loss) Before Tax (NPBT)
B5: Overtime / Allowance | C5: 0 | D5: =OFFSET('Serviceability Calculator'!$C44,(D$2-1)*vApplicant_Rows,0) -> 0 | E5: =OFFSET('Serviceability Calculator'!$C44,(E$2-1)*vApplicant_Rows,0) -> 0 | F5: =OFFSET('Serviceability Calculator'!$C44,(F$2-1)*vApplicant_Rows,0) -> 0 | G5: =OFFSET('Serviceability Calculator'!$C44,(G$2-1)*vApplicant_Rows,0) -> 0 | H5: =OFFSET('Serviceability Calculator'!$C44,(H$2-1)*vApplicant_Rows,0) -> 0 | I5: =OFFSET('Serviceability Calculator'!$C44,(I$2-1)*vApplicant_Rows,0) -> 0
B6: Bonus / Commission | C6: 0 | D6: =OFFSET('Serviceability Calculator'!$C46,(D$2-1)*vApplicant_Rows,0) -> 0 | E6: =OFFSET('Serviceability Calculator'!$C46,(E$2-1)*vApplicant_Rows,0) -> 0 | F6: =OFFSET('Serviceability Calculator'!$C46,(F$2-1)*vApplicant_Rows,0) -> 0 | G6: =OFFSET('Serviceability Calculator'!$C46,(G$2-1)*vApplicant_Rows,0) -> 0 | H6: =OFFSET('Serviceability Calculator'!$C46,(H$2-1)*vApplicant_Rows,0) -> 0 | I6: =OFFSET('Serviceability Calculator'!$C46,(I$2-1)*vApplicant_Rows,0) -> 0
B7: Investment | C7: 0 | D7: =OFFSET('Serviceability Calculator'!$C48,(D$2-1)*vApplicant_Rows,0) -> 0 | E7: =OFFSET('Serviceability Calculator'!$C48,(E$2-1)*vApplicant_Rows,0) -> 0 | F7: =OFFSET('Serviceability Calculator'!$C48,(F$2-1)*vApplicant_Rows,0) -> 0 | G7: =OFFSET('Serviceability Calculator'!$C48,(G$2-1)*vApplicant_Rows,0) -> 0 | H7: =OFFSET('Serviceability Calculator'!$C48,(H$2-1)*vApplicant_Rows,0) -> 0 | I7: =OFFSET('Serviceability Calculator'!$C48,(I$2-1)*vApplicant_Rows,0) -> 0
B8: Other | C8: 0 | D8: =OFFSET('Serviceability Calculator'!$C50,(D$2-1)*vApplicant_Rows,0) -> 0 | E8: =OFFSET('Serviceability Calculator'!$C50,(E$2-1)*vApplicant_Rows,0) -> 0 | F8: =OFFSET('Serviceability Calculator'!$C50,(F$2-1)*vApplicant_Rows,0) -> 0 | G8: =OFFSET('Serviceability Calculator'!$C50,(G$2-1)*vApplicant_Rows,0) -> 0 | H8: =OFFSET('Serviceability Calculator'!$C50,(H$2-1)*vApplicant_Rows,0) -> 0 | I8: =OFFSET('Serviceability Calculator'!$C50,(I$2-1)*vApplicant_Rows,0) -> 0
B9: Rental Income 1 | C9: 0 | D9: =ROUND(OFFSET('Serviceability Calculator'!$C57,(D$2-1)*vApplicant_Rows,0)*OFFSET('Serviceability Calculator'!$D57,(D$2-1)*vApplicant_Rows,0),2) -> 0 | E9: =ROUND(OFFSET('Serviceability Calculator'!$C57,(E$2-1)*vApplicant_Rows,0)*OFFSET('Serviceability Calculator'!$D57,(E$2-1)*vApplicant_Rows,0),2) -> 0 | F9: =ROUND(OFFSET('Serviceability Calculator'!$C57,(F$2-1)*vApplicant_Rows,0)*OFFSET('Serviceability Calculator'!$D57,(F$2-1)*vApplicant_Rows,0),2) -> 0 | G9: =ROUND(OFFSET('Serviceability Calculator'!$C57,(G$2-1)*vApplicant_Rows,0)*OFFSET('Serviceability Calculator'!$D57,(G$2-1)*vApplicant_Rows,0),2) -> 0 | H9: =ROUND(OFFSET('Serviceability Calculator'!$C57,(H$2-1)*vApplicant_Rows,0)*OFFSET('Serviceability Calculator'!$D57,(H$2-1)*vApplicant_Rows,0),2) -> 0 | I9: =ROUND(OFFSET('Serviceability Calculator'!$C57,(I$2-1)*vApplicant_Rows,0)*OFFSET('Serviceability Calculator'!$D57,(I$2-1)*vApplicant_Rows,0),2) -> 0 | K9: % Ownership applied to Rent Received
B10: Rental Income 2 | C10: 0 | D10: =ROUND(OFFSET('Serviceability Calculator'!$C58,(D$2-1)*vApplicant_Rows,0)*OFFSET('Serviceability Calculator'!$D58,(D$2-1)*vApplicant_Rows,0),2) -> 0 | E10: =ROUND(OFFSET('Serviceability Calculator'!$C58,(E$2-1)*vApplicant_Rows,0)*OFFSET('Serviceability Calculator'!$D58,(E$2-1)*vApplicant_Rows,0),2) -> 0 | F10: =ROUND(OFFSET('Serviceability Calculator'!$C58,(F$2-1)*vApplicant_Rows,0)*OFFSET('Serviceability Calculator'!$D58,(F$2-1)*vApplicant_Rows,0),2) -> 0 | G10: =ROUND(OFFSET('Serviceability Calculator'!$C58,(G$2-1)*vApplicant_Rows,0)*OFFSET('Serviceability Calculator'!$D58,(G$2-1)*vApplicant_Rows,0),2) -> 0 | H10: =ROUND(OFFSET('Serviceability Calculator'!$C58,(H$2-1)*vApplicant_Rows,0)*OFFSET('Serviceability Calculator'!$D58,(H$2-1)*vApplicant_Rows,0),2) -> 0 | I10: =ROUND(OFFSET('Serviceability Calculator'!$C58,(I$2-1)*vApplicant_Rows,0)*OFFSET('Serviceability Calculator'!$D58,(I$2-1)*vApplicant_Rows,0),2) -> 0
B11: Rental Income 3 | C11: 0 | D11: =ROUND(OFFSET('Serviceability Calculator'!$C59,(D$2-1)*vApplicant_Rows,0)*OFFSET('Serviceability Calculator'!$D59,(D$2-1)*vApplicant_Rows,0),2) -> 0 | E11: =ROUND(OFFSET('Serviceability Calculator'!$C59,(E$2-1)*vApplicant_Rows,0)*OFFSET('Serviceability Calculator'!$D59,(E$2-1)*vApplicant_Rows,0),2) -> 0 | F11: =ROUND(OFFSET('Serviceability Calculator'!$C59,(F$2-1)*vApplicant_Rows,0)*OFFSET('Serviceability Calculator'!$D59,(F$2-1)*vApplicant_Rows,0),2) -> 0 | G11: =ROUND(OFFSET('Serviceability Calculator'!$C59,(G$2-1)*vApplicant_Rows,0)*OFFSET('Serviceability Calculator'!$D59,(G$2-1)*vApplicant_Rows,0),2) -> 0 | H11: =ROUND(OFFSET('Serviceability Calculator'!$C59,(H$2-1)*vApplicant_Rows,0)*OFFSET('Serviceability Calculator'!$D59,(H$2-1)*vApplicant_Rows,0),2) -> 0 | I11: =ROUND(OFFSET('Serviceability Calculator'!$C59,(I$2-1)*vApplicant_Rows,0)*OFFSET('Serviceability Calculator'!$D59,(I$2-1)*vApplicant_Rows,0),2) -> 0
B12: Rental Income 4 | C12: 0 | D12: =ROUND(OFFSET('Serviceability Calculator'!$C60,(D$2-1)*vApplicant_Rows,0)*OFFSET('Serviceability Calculator'!$D60,(D$2-1)*vApplicant_Rows,0),2) -> 0 | E12: =ROUND(OFFSET('Serviceability Calculator'!$C60,(E$2-1)*vApplicant_Rows,0)*OFFSET('Serviceability Calculator'!$D60,(E$2-1)*vApplicant_Rows,0),2) -> 0 | F12: =ROUND(OFFSET('Serviceability Calculator'!$C60,(F$2-1)*vApplicant_Rows,0)*OFFSET('Serviceability Calculator'!$D60,(F$2-1)*vApplicant_Rows,0),2) -> 0 | G12: =ROUND(OFFSET('Serviceability Calculator'!$C60,(G$2-1)*vApplicant_Rows,0)*OFFSET('Serviceability Calculator'!$D60,(G$2-1)*vApplicant_Rows,0),2) -> 0 | H12: =ROUND(OFFSET('Serviceability Calculator'!$C60,(H$2-1)*vApplicant_Rows,0)*OFFSET('Serviceability Calculator'!$D60,(H$2-1)*vApplicant_Rows,0),2) -> 0 | I12: =ROUND(OFFSET('Serviceability Calculator'!$C60,(I$2-1)*vApplicant_Rows,0)*OFFSET('Serviceability Calculator'!$D60,(I$2-1)*vApplicant_Rows,0),2) -> 0
B13: Rental Income 5 | C13: 0 | D13: =ROUND(OFFSET('Serviceability Calculator'!$C61,(D$2-1)*vApplicant_Rows,0)*OFFSET('Serviceability Calculator'!$D61,(D$2-1)*vApplicant_Rows,0),2) -> 0 | E13: =ROUND(OFFSET('Serviceability Calculator'!$C61,(E$2-1)*vApplicant_Rows,0)*OFFSET('Serviceability Calculator'!$D61,(E$2-1)*vApplicant_Rows,0),2) -> 0 | F13: =ROUND(OFFSET('Serviceability Calculator'!$C61,(F$2-1)*vApplicant_Rows,0)*OFFSET('Serviceability Calculator'!$D61,(F$2-1)*vApplicant_Rows,0),2) -> 0 | G13: =ROUND(OFFSET('Serviceability Calculator'!$C61,(G$2-1)*vApplicant_Rows,0)*OFFSET('Serviceability Calculator'!$D61,(G$2-1)*vApplicant_Rows,0),2) -> 0 | H13: =ROUND(OFFSET('Serviceability Calculator'!$C61,(H$2-1)*vApplicant_Rows,0)*OFFSET('Serviceability Calculator'!$D61,(H$2-1)*vApplicant_Rows,0),2) -> 0 | I13: =ROUND(OFFSET('Serviceability Calculator'!$C61,(I$2-1)*vApplicant_Rows,0)*OFFSET('Serviceability Calculator'!$D61,(I$2-1)*vApplicant_Rows,0),2) -> 0
B14: Rental Income 6 | C14: 0 | D14: =ROUND(OFFSET('Serviceability Calculator'!$C62,(D$2-1)*vApplicant_Rows,0)*OFFSET('Serviceability Calculator'!$D62,(D$2-1)*vApplicant_Rows,0),2) -> 0 | E14: =ROUND(OFFSET('Serviceability Calculator'!$C62,(E$2-1)*vApplicant_Rows,0)*OFFSET('Serviceability Calculator'!$D62,(E$2-1)*vApplicant_Rows,0),2) -> 0 | F14: =ROUND(OFFSET('Serviceability Calculator'!$C62,(F$2-1)*vApplicant_Rows,0)*OFFSET('Serviceability Calculator'!$D62,(F$2-1)*vApplicant_Rows,0),2) -> 0 | G14: =ROUND(OFFSET('Serviceability Calculator'!$C62,(G$2-1)*vApplicant_Rows,0)*OFFSET('Serviceability Calculator'!$D62,(G$2-1)*vApplicant_Rows,0),2) -> 0 | H14: =ROUND(OFFSET('Serviceability Calculator'!$C62,(H$2-1)*vApplicant_Rows,0)*OFFSET('Serviceability Calculator'!$D62,(H$2-1)*vApplicant_Rows,0),2) -> 0 | I14: =ROUND(OFFSET('Serviceability Calculator'!$C62,(I$2-1)*vApplicant_Rows,0)*OFFSET('Serviceability Calculator'!$D62,(I$2-1)*vApplicant_Rows,0),2) -> 0
B15: Rental Income 7 | C15: 0 | D15: =ROUND(OFFSET('Serviceability Calculator'!$C63,(D$2-1)*vApplicant_Rows,0)*OFFSET('Serviceability Calculator'!$D63,(D$2-1)*vApplicant_Rows,0),2) -> 0 | E15: =ROUND(OFFSET('Serviceability Calculator'!$C63,(E$2-1)*vApplicant_Rows,0)*OFFSET('Serviceability Calculator'!$D63,(E$2-1)*vApplicant_Rows,0),2) -> 0 | F15: =ROUND(OFFSET('Serviceability Calculator'!$C63,(F$2-1)*vApplicant_Rows,0)*OFFSET('Serviceability Calculator'!$D63,(F$2-1)*vApplicant_Rows,0),2) -> 0 | G15: =ROUND(OFFSET('Serviceability Calculator'!$C63,(G$2-1)*vApplicant_Rows,0)*OFFSET('Serviceability Calculator'!$D63,(G$2-1)*vApplicant_Rows,0),2) -> 0 | H15: =ROUND(OFFSET('Serviceability Calculator'!$C63,(H$2-1)*vApplicant_Rows,0)*OFFSET('Serviceability Calculator'!$D63,(H$2-1)*vApplicant_Rows,0),2) -> 0 | I15: =ROUND(OFFSET('Serviceability Calculator'!$C63,(I$2-1)*vApplicant_Rows,0)*OFFSET('Serviceability Calculator'!$D63,(I$2-1)*vApplicant_Rows,0),2) -> 0
B16: Rental Income 8 | C16: 0 | D16: =ROUND(OFFSET('Serviceability Calculator'!$C64,(D$2-1)*vApplicant_Rows,0)*OFFSET('Serviceability Calculator'!$D64,(D$2-1)*vApplicant_Rows,0),2) -> 0 | E16: =ROUND(OFFSET('Serviceability Calculator'!$C64,(E$2-1)*vApplicant_Rows,0)*OFFSET('Serviceability Calculator'!$D64,(E$2-1)*vApplicant_Rows,0),2) -> 0 | F16: =ROUND(OFFSET('Serviceability Calculator'!$C64,(F$2-1)*vApplicant_Rows,0)*OFFSET('Serviceability Calculator'!$D64,(F$2-1)*vApplicant_Rows,0),2) -> 0 | G16: =ROUND(OFFSET('Serviceability Calculator'!$C64,(G$2-1)*vApplicant_Rows,0)*OFFSET('Serviceability Calculator'!$D64,(G$2-1)*vApplicant_Rows,0),2) -> 0 | H16: =ROUND(OFFSET('Serviceability Calculator'!$C64,(H$2-1)*vApplicant_Rows,0)*OFFSET('Serviceability Calculator'!$D64,(H$2-1)*vApplicant_Rows,0),2) -> 0 | I16: =ROUND(OFFSET('Serviceability Calculator'!$C64,(I$2-1)*vApplicant_Rows,0)*OFFSET('Serviceability Calculator'!$D64,(I$2-1)*vApplicant_Rows,0),2) -> 0
B17: Rental Income 9 | C17: 0 | D17: =ROUND(OFFSET('Serviceability Calculator'!$C65,(D$2-1)*vApplicant_Rows,0)*OFFSET('Serviceability Calculator'!$D65,(D$2-1)*vApplicant_Rows,0),2) -> 0 | E17: =ROUND(OFFSET('Serviceability Calculator'!$C65,(E$2-1)*vApplicant_Rows,0)*OFFSET('Serviceability Calculator'!$D65,(E$2-1)*vApplicant_Rows,0),2) -> 0 | F17: =ROUND(OFFSET('Serviceability Calculator'!$C65,(F$2-1)*vApplicant_Rows,0)*OFFSET('Serviceability Calculator'!$D65,(F$2-1)*vApplicant_Rows,0),2) -> 0 | G17: =ROUND(OFFSET('Serviceability Calculator'!$C65,(G$2-1)*vApplicant_Rows,0)*OFFSET('Serviceability Calculator'!$D65,(G$2-1)*vApplicant_Rows,0),2) -> 0 | H17: =ROUND(OFFSET('Serviceability Calculator'!$C65,(H$2-1)*vApplicant_Rows,0)*OFFSET('Serviceability Calculator'!$D65,(H$2-1)*vApplicant_Rows,0),2) -> 0 | I17: =ROUND(OFFSET('Serviceability Calculator'!$C65,(I$2-1)*vApplicant_Rows,0)*OFFSET('Serviceability Calculator'!$D65,(I$2-1)*vApplicant_Rows,0),2) -> 0
B18: Rental Income 10 | C18: 0 | D18: =ROUND(OFFSET('Serviceability Calculator'!$C66,(D$2-1)*vApplicant_Rows,0)*OFFSET('Serviceability Calculator'!$D66,(D$2-1)*vApplicant_Rows,0),2) -> 0 | E18: =ROUND(OFFSET('Serviceability Calculator'!$C66,(E$2-1)*vApplicant_Rows,0)*OFFSET('Serviceability Calculator'!$D66,(E$2-1)*vApplicant_Rows,0),2) -> 0 | F18: =ROUND(OFFSET('Serviceability Calculator'!$C66,(F$2-1)*vApplicant_Rows,0)*OFFSET('Serviceability Calculator'!$D66,(F$2-1)*vApplicant_Rows,0),2) -> 0 | G18: =ROUND(OFFSET('Serviceability Calculator'!$C66,(G$2-1)*vApplicant_Rows,0)*OFFSET('Serviceability Calculator'!$D66,(G$2-1)*vApplicant_Rows,0),2) -> 0 | H18: =ROUND(OFFSET('Serviceability Calculator'!$C66,(H$2-1)*vApplicant_Rows,0)*OFFSET('Serviceability Calculator'!$D66,(H$2-1)*vApplicant_Rows,0),2) -> 0 | I18: =ROUND(OFFSET('Serviceability Calculator'!$C66,(I$2-1)*vApplicant_Rows,0)*OFFSET('Serviceability Calculator'!$D66,(I$2-1)*vApplicant_Rows,0),2) -> 0
B19: Total Income | C19: 150000 | D19: =SUM(D3:D18) -> 150000 | E19: 0 | F19: 0 | G19: 0 | H19: 0 | I19: 0
B20: Rental Shading | C20: 0 | D20: =SUM(D9:D18)*(1-vRentalShading) -> 0 | E20: 0 | F20: 0 | G20: 0 | H20: 0 | I20: 0
B21: Gross Annual Income | C21: 150000 | D21: =D19-D20 -> 150000 | E21: =E19-E20 -> 0 | F21: 0 | G21: 0 | H21: 0 | I21: 0
B22: Interest Deductions 1 | C22: 0 | D22: =ROUND(OFFSET('Serviceability Calculator'!$E57,(D$2-1)*vApplicant_Rows,0)*OFFSET('Serviceability Calculator'!$D57,(D$2-1)*vApplicant_Rows,0)*vGearing,2) -> 0 | E22: =ROUND(OFFSET('Serviceability Calculator'!$E57,(E$2-1)*vApplicant_Rows,0)*OFFSET('Serviceability Calculator'!$D57,(E$2-1)*vApplicant_Rows,0)*vGearing,2) -> 0 | F22: =ROUND(OFFSET('Serviceability Calculator'!$E57,(F$2-1)*vApplicant_Rows,0)*OFFSET('Serviceability Calculator'!$D57,(F$2-1)*vApplicant_Rows,0)*vGearing,2) -> 0 | G22: =ROUND(OFFSET('Serviceability Calculator'!$E57,(G$2-1)*vApplicant_Rows,0)*OFFSET('Serviceability Calculator'!$D57,(G$2-1)*vApplicant_Rows,0)*vGearing,2) -> 0 | H22: =ROUND(OFFSET('Serviceability Calculator'!$E57,(H$2-1)*vApplicant_Rows,0)*OFFSET('Serviceability Calculator'!$D57,(H$2-1)*vApplicant_Rows,0)*vGearing,2) -> 0 | I22: =ROUND(OFFSET('Serviceability Calculator'!$E57,(I$2-1)*vApplicant_Rows,0)*OFFSET('Serviceability Calculator'!$D57,(I$2-1)*vApplicant_Rows,0)*vGearing,2) -> 0 | K22: Gearing Rate entered for the Investment Loan Amount, % Ownership also applied
B23: Interest Deductions 2 | C23: 0 | D23: =ROUND(OFFSET('Serviceability Calculator'!$E58,(D$2-1)*vApplicant_Rows,0)*OFFSET('Serviceability Calculator'!$D58,(D$2-1)*vApplicant_Rows,0)*vGearing,2) -> 0 | E23: =ROUND(OFFSET('Serviceability Calculator'!$E58,(E$2-1)*vApplicant_Rows,0)*OFFSET('Serviceability Calculator'!$D58,(E$2-1)*vApplicant_Rows,0)*vGearing,2) -> 0 | F23: =ROUND(OFFSET('Serviceability Calculator'!$E58,(F$2-1)*vApplicant_Rows,0)*OFFSET('Serviceability Calculator'!$D58,(F$2-1)*vApplicant_Rows,0)*vGearing,2) -> 0 | G23: =ROUND(OFFSET('Serviceability Calculator'!$E58,(G$2-1)*vApplicant_Rows,0)*OFFSET('Serviceability Calculator'!$D58,(G$2-1)*vApplicant_Rows,0)*vGearing,2) -> 0 | H23: =ROUND(OFFSET('Serviceability Calculator'!$E58,(H$2-1)*vApplicant_Rows,0)*OFFSET('Serviceability Calculator'!$D58,(H$2-1)*vApplicant_Rows,0)*vGearing,2) -> 0 | I23: =ROUND(OFFSET('Serviceability Calculator'!$E58,(I$2-1)*vApplicant_Rows,0)*OFFSET('Serviceability Calculator'!$D58,(I$2-1)*vApplicant_Rows,0)*vGearing,2) -> 0
B24: Interest Deductions 3 | C24: 0 | D24: =ROUND(OFFSET('Serviceability Calculator'!$E59,(D$2-1)*vApplicant_Rows,0)*OFFSET('Serviceability Calculator'!$D59,(D$2-1)*vApplicant_Rows,0)*vGearing,2) -> 0 | E24: =ROUND(OFFSET('Serviceability Calculator'!$E59,(E$2-1)*vApplicant_Rows,0)*OFFSET('Serviceability Calculator'!$D59,(E$2-1)*vApplicant_Rows,0)*vGearing,2) -> 0 | F24: =ROUND(OFFSET('Serviceability Calculator'!$E59,(F$2-1)*vApplicant_Rows,0)*OFFSET('Serviceability Calculator'!$D59,(F$2-1)*vApplicant_Rows,0)*vGearing,2) -> 0 | G24: =ROUND(OFFSET('Serviceability Calculator'!$E59,(G$2-1)*vApplicant_Rows,0)*OFFSET('Serviceability Calculator'!$D59,(G$2-1)*vApplicant_Rows,0)*vGearing,2) -> 0 | H24: =ROUND(OFFSET('Serviceability Calculator'!$E59,(H$2-1)*vApplicant_Rows,0)*OFFSET('Serviceability Calculator'!$D59,(H$2-1)*vApplicant_Rows,0)*vGearing,2) -> 0 | I24: =ROUND(OFFSET('Serviceability Calculator'!$E59,(I$2-1)*vApplicant_Rows,0)*OFFSET('Serviceability Calculator'!$D59,(I$2-1)*vApplicant_Rows,0)*vGearing,2) -> 0
B25: Interest Deductions 4 | C25: 0 | D25: =ROUND(OFFSET('Serviceability Calculator'!$E60,(D$2-1)*vApplicant_Rows,0)*OFFSET('Serviceability Calculator'!$D60,(D$2-1)*vApplicant_Rows,0)*vGearing,2) -> 0 | E25: =ROUND(OFFSET('Serviceability Calculator'!$E60,(E$2-1)*vApplicant_Rows,0)*OFFSET('Serviceability Calculator'!$D60,(E$2-1)*vApplicant_Rows,0)*vGearing,2) -> 0 | F25: =ROUND(OFFSET('Serviceability Calculator'!$E60,(F$2-1)*vApplicant_Rows,0)*OFFSET('Serviceability Calculator'!$D60,(F$2-1)*vApplicant_Rows,0)*vGearing,2) -> 0 | G25: =ROUND(OFFSET('Serviceability Calculator'!$E60,(G$2-1)*vApplicant_Rows,0)*OFFSET('Serviceability Calculator'!$D60,(G$2-1)*vApplicant_Rows,0)*vGearing,2) -> 0 | H25: =ROUND(OFFSET('Serviceability Calculator'!$E60,(H$2-1)*vApplicant_Rows,0)*OFFSET('Serviceability Calculator'!$D60,(H$2-1)*vApplicant_Rows,0)*vGearing,2) -> 0 | I25: =ROUND(OFFSET('Serviceability Calculator'!$E60,(I$2-1)*vApplicant_Rows,0)*OFFSET('Serviceability Calculator'!$D60,(I$2-1)*vApplicant_Rows,0)*vGearing,2) -> 0
B26: Interest Deductions 5 | C26: 0 | D26: =ROUND(OFFSET('Serviceability Calculator'!$E61,(D$2-1)*vApplicant_Rows,0)*OFFSET('Serviceability Calculator'!$D61,(D$2-1)*vApplicant_Rows,0)*vGearing,2) -> 0 | E26: =ROUND(OFFSET('Serviceability Calculator'!$E61,(E$2-1)*vApplicant_Rows,0)*OFFSET('Serviceability Calculator'!$D61,(E$2-1)*vApplicant_Rows,0)*vGearing,2) -> 0 | F26: =ROUND(OFFSET('Serviceability Calculator'!$E61,(F$2-1)*vApplicant_Rows,0)*OFFSET('Serviceability Calculator'!$D61,(F$2-1)*vApplicant_Rows,0)*vGearing,2) -> 0 | G26: =ROUND(OFFSET('Serviceability Calculator'!$E61,(G$2-1)*vApplicant_Rows,0)*OFFSET('Serviceability Calculator'!$D61,(G$2-1)*vApplicant_Rows,0)*vGearing,2) -> 0 | H26: =ROUND(OFFSET('Serviceability Calculator'!$E61,(H$2-1)*vApplicant_Rows,0)*OFFSET('Serviceability Calculator'!$D61,(H$2-1)*vApplicant_Rows,0)*vGearing,2) -> 0 | I26: =ROUND(OFFSET('Serviceability Calculator'!$E61,(I$2-1)*vApplicant_Rows,0)*OFFSET('Serviceability Calculator'!$D61,(I$2-1)*vApplicant_Rows,0)*vGearing,2) -> 0
B27: Interest Deductions 6 | C27: 0 | D27: =ROUND(OFFSET('Serviceability Calculator'!$E62,(D$2-1)*vApplicant_Rows,0)*OFFSET('Serviceability Calculator'!$D62,(D$2-1)*vApplicant_Rows,0)*vGearing,2) -> 0 | E27: =ROUND(OFFSET('Serviceability Calculator'!$E62,(E$2-1)*vApplicant_Rows,0)*OFFSET('Serviceability Calculator'!$D62,(E$2-1)*vApplicant_Rows,0)*vGearing,2) -> 0 | F27: =ROUND(OFFSET('Serviceability Calculator'!$E62,(F$2-1)*vApplicant_Rows,0)*OFFSET('Serviceability Calculator'!$D62,(F$2-1)*vApplicant_Rows,0)*vGearing,2) -> 0 | G27: =ROUND(OFFSET('Serviceability Calculator'!$E62,(G$2-1)*vApplicant_Rows,0)*OFFSET('Serviceability Calculator'!$D62,(G$2-1)*vApplicant_Rows,0)*vGearing,2) -> 0 | H27: =ROUND(OFFSET('Serviceability Calculator'!$E62,(H$2-1)*vApplicant_Rows,0)*OFFSET('Serviceability Calculator'!$D62,(H$2-1)*vApplicant_Rows,0)*vGearing,2) -> 0 | I27: =ROUND(OFFSET('Serviceability Calculator'!$E62,(I$2-1)*vApplicant_Rows,0)*OFFSET('Serviceability Calculator'!$D62,(I$2-1)*vApplicant_Rows,0)*vGearing,2) -> 0
B28: Interest Deductions 7 | C28: 0 | D28: =ROUND(OFFSET('Serviceability Calculator'!$E63,(D$2-1)*vApplicant_Rows,0)*OFFSET('Serviceability Calculator'!$D63,(D$2-1)*vApplicant_Rows,0)*vGearing,2) -> 0 | E28: =ROUND(OFFSET('Serviceability Calculator'!$E63,(E$2-1)*vApplicant_Rows,0)*OFFSET('Serviceability Calculator'!$D63,(E$2-1)*vApplicant_Rows,0)*vGearing,2) -> 0 | F28: =ROUND(OFFSET('Serviceability Calculator'!$E63,(F$2-1)*vApplicant_Rows,0)*OFFSET('Serviceability Calculator'!$D63,(F$2-1)*vApplicant_Rows,0)*vGearing,2) -> 0 | G28: =ROUND(OFFSET('Serviceability Calculator'!$E63,(G$2-1)*vApplicant_Rows,0)*OFFSET('Serviceability Calculator'!$D63,(G$2-1)*vApplicant_Rows,0)*vGearing,2) -> 0 | H28: =ROUND(OFFSET('Serviceability Calculator'!$E63,(H$2-1)*vApplicant_Rows,0)*OFFSET('Serviceability Calculator'!$D63,(H$2-1)*vApplicant_Rows,0)*vGearing,2) -> 0 | I28: =ROUND(OFFSET('Serviceability Calculator'!$E63,(I$2-1)*vApplicant_Rows,0)*OFFSET('Serviceability Calculator'!$D63,(I$2-1)*vApplicant_Rows,0)*vGearing,2) -> 0
B29: Interest Deductions 8 | C29: 0 | D29: =ROUND(OFFSET('Serviceability Calculator'!$E64,(D$2-1)*vApplicant_Rows,0)*OFFSET('Serviceability Calculator'!$D64,(D$2-1)*vApplicant_Rows,0)*vGearing,2) -> 0 | E29: =ROUND(OFFSET('Serviceability Calculator'!$E64,(E$2-1)*vApplicant_Rows,0)*OFFSET('Serviceability Calculator'!$D64,(E$2-1)*vApplicant_Rows,0)*vGearing,2) -> 0 | F29: =ROUND(OFFSET('Serviceability Calculator'!$E64,(F$2-1)*vApplicant_Rows,0)*OFFSET('Serviceability Calculator'!$D64,(F$2-1)*vApplicant_Rows,0)*vGearing,2) -> 0 | G29: =ROUND(OFFSET('Serviceability Calculator'!$E64,(G$2-1)*vApplicant_Rows,0)*OFFSET('Serviceability Calculator'!$D64,(G$2-1)*vApplicant_Rows,0)*vGearing,2) -> 0 | H29: =ROUND(OFFSET('Serviceability Calculator'!$E64,(H$2-1)*vApplicant_Rows,0)*OFFSET('Serviceability Calculator'!$D64,(H$2-1)*vApplicant_Rows,0)*vGearing,2) -> 0 | I29: =ROUND(OFFSET('Serviceability Calculator'!$E64,(I$2-1)*vApplicant_Rows,0)*OFFSET('Serviceability Calculator'!$D64,(I$2-1)*vApplicant_Rows,0)*vGearing,2) -> 0
B30: Interest Deductions 9 | C30: 0 | D30: =ROUND(OFFSET('Serviceability Calculator'!$E65,(D$2-1)*vApplicant_Rows,0)*OFFSET('Serviceability Calculator'!$D65,(D$2-1)*vApplicant_Rows,0)*vGearing,2) -> 0 | E30: =ROUND(OFFSET('Serviceability Calculator'!$E65,(E$2-1)*vApplicant_Rows,0)*OFFSET('Serviceability Calculator'!$D65,(E$2-1)*vApplicant_Rows,0)*vGearing,2) -> 0 | F30: =ROUND(OFFSET('Serviceability Calculator'!$E65,(F$2-1)*vApplicant_Rows,0)*OFFSET('Serviceability Calculator'!$D65,(F$2-1)*vApplicant_Rows,0)*vGearing,2) -> 0 | G30: =ROUND(OFFSET('Serviceability Calculator'!$E65,(G$2-1)*vApplicant_Rows,0)*OFFSET('Serviceability Calculator'!$D65,(G$2-1)*vApplicant_Rows,0)*vGearing,2) -> 0 | H30: =ROUND(OFFSET('Serviceability Calculator'!$E65,(H$2-1)*vApplicant_Rows,0)*OFFSET('Serviceability Calculator'!$D65,(H$2-1)*vApplicant_Rows,0)*vGearing,2) -> 0 | I30: =ROUND(OFFSET('Serviceability Calculator'!$E65,(I$2-1)*vApplicant_Rows,0)*OFFSET('Serviceability Calculator'!$D65,(I$2-1)*vApplicant_Rows,0)*vGearing,2) -> 0
B31: Interest Deductions 10 | C31: 0 | D31: =ROUND(OFFSET('Serviceability Calculator'!$E66,(D$2-1)*vApplicant_Rows,0)*OFFSET('Serviceability Calculator'!$D66,(D$2-1)*vApplicant_Rows,0)*vGearing,2) -> 0 | E31: =ROUND(OFFSET('Serviceability Calculator'!$E66,(E$2-1)*vApplicant_Rows,0)*OFFSET('Serviceability Calculator'!$D66,(E$2-1)*vApplicant_Rows,0)*vGearing,2) -> 0 | F31: =ROUND(OFFSET('Serviceability Calculator'!$E66,(F$2-1)*vApplicant_Rows,0)*OFFSET('Serviceability Calculator'!$D66,(F$2-1)*vApplicant_Rows,0)*vGearing,2) -> 0 | G31: =ROUND(OFFSET('Serviceability Calculator'!$E66,(G$2-1)*vApplicant_Rows,0)*OFFSET('Serviceability Calculator'!$D66,(G$2-1)*vApplicant_Rows,0)*vGearing,2) -> 0 | H31: =ROUND(OFFSET('Serviceability Calculator'!$E66,(H$2-1)*vApplicant_Rows,0)*OFFSET('Serviceability Calculator'!$D66,(H$2-1)*vApplicant_Rows,0)*vGearing,2) -> 0 | I31: =ROUND(OFFSET('Serviceability Calculator'!$E66,(I$2-1)*vApplicant_Rows,0)*OFFSET('Serviceability Calculator'!$D66,(I$2-1)*vApplicant_Rows,0)*vGearing,2) -> 0
B32: ="Rental Deductions "&IF(vPropertyExpense=0,"(N/A)","@ "&TEXT(vPropertyExpense,"0.00%")) -> Rental Deductions (N/A) | C32: 0 | D32: =IF(vPropertyExpense=0,0,ROUND(SUM(D9:D18)/(1-vPropertyExpense)*vPropertyExpense,2)) -> 0 | E32: =IF(vPropertyExpense=0,0,ROUND(SUM(E9:E18)/(1-vPropertyExpense)*vPropertyExpense,2)) -> 0 | F32: 0 | G32: 0 | H32: 0 | I32: 0
B33: Taxable Gross Income | C33: 150000 | D33: =D21-SUM(D22:D32) -> 150000 | E33: =E21-SUM(E22:E32) -> 0 | F33: 0 | G33: 0 | H33: 0 | I33: 0 | K33: Taxable Gross Income used for HEM Calculation
B34: Income Tax and Medicare | C34: 43567 | D34: =IF(D33<=0,0,ROUND(VLOOKUP(D33,tIncomeTax,3)+(D33-VLOOKUP(D33,tIncomeTax,1))*VLOOKUP(D33,tIncomeTax,2)+D33*vMedicareLevy,2)) -> 43567 | E34: 0 | F34: 0 | G34: 0 | H34: 0 | I34: 0 | K34: From PAYG Table plus Medicare Rate
B35: Non-Taxable | C35: 0 | D35: =OFFSET('Serviceability Calculator'!$C30,(D$2-1)*vApplicant_Rows,0) -> 0 | E35: =OFFSET('Serviceability Calculator'!$C30,(E$2-1)*vApplicant_Rows,0) -> 0 | F35: =OFFSET('Serviceability Calculator'!$C30,(F$2-1)*vApplicant_Rows,0) -> 0 | G35: =OFFSET('Serviceability Calculator'!$C30,(G$2-1)*vApplicant_Rows,0) -> 0 | H35: =OFFSET('Serviceability Calculator'!$C30,(H$2-1)*vApplicant_Rows,0) -> 0 | I35: =OFFSET('Serviceability Calculator'!$C30,(I$2-1)*vApplicant_Rows,0) -> 0
B36: Self Employed Add Backs | C36: 0 | D36: =OFFSET('Serviceability Calculator'!$C36,(D$2-1)*vApplicant_Rows,0)+OFFSET('Serviceability Calculator'!$C38,(D$2-1)*vApplicant_Rows,0)+OFFSET('Serviceability Calculator'!$C40,(D$2-1)*vApplicant_Rows,0) -> 0 | E36: =OFFSET('Serviceability Calculator'!$C36,(E$2-1)*vApplicant_Rows,0)+OFFSET('Serviceability Calculator'!$C38,(E$2-1)*vApplicant_Rows,0)+OFFSET('Serviceability Calculator'!$C40,(E$2-1)*vApplicant_Rows,0) -> 0 | F36: =OFFSET('Serviceability Calculator'!$C36,(F$2-1)*vApplicant_Rows,0)+OFFSET('Serviceability Calculator'!$C38,(F$2-1)*vApplicant_Rows,0)+OFFSET('Serviceability Calculator'!$C40,(F$2-1)*vApplicant_Rows,0) -> 0 | G36: =OFFSET('Serviceability Calculator'!$C36,(G$2-1)*vApplicant_Rows,0)+OFFSET('Serviceability Calculator'!$C38,(G$2-1)*vApplicant_Rows,0)+OFFSET('Serviceability Calculator'!$C40,(G$2-1)*vApplicant_Rows,0) -> 0 | H36: =OFFSET('Serviceability Calculator'!$C36,(H$2-1)*vApplicant_Rows,0)+OFFSET('Serviceability Calculator'!$C38,(H$2-1)*vApplicant_Rows,0)+OFFSET('Serviceability Calculator'!$C40,(H$2-1)*vApplicant_Rows,0) -> 0 | I36: =OFFSET('Serviceability Calculator'!$C36,(I$2-1)*vApplicant_Rows,0)+OFFSET('Serviceability Calculator'!$C38,(I$2-1)*vApplicant_Rows,0)+OFFSET('Serviceability Calculator'!$C40,(I$2-1)*vApplicant_Rows,0) -> 0 | K36: Includes Interest, Other Addbacks and Depreciation
B37: Net Annual Income | C37: 106433 | D37: =D21-D34+D35+D36 -> 106433 | E37: 0 | F37: 0 | G37: 0 | H37: 0 | I37: 0
B38: Hem Expenses (Weekly) | C38: 0 | D38: =ROUND(OFFSET(vHEM,D$2,0),0) -> 0 | E38: 0 | F38: 0 | G38: 0 | H38: 0 | I38: 0
B39: HEM Expenses | C39: 0 | D39: =ROUND(D38*52/12,0) -> 0 | E39: =ROUND(E38*52/12,0) -> 0 | F39: 0 | G39: 0 | H39: 0 | I39: 0 | K39: From the HEM Table
B41: Company | C41: Total | D41: 1
B42: Company Net Profit Before Tax | C42: =IF(vCompany,D42,0) -> 0 | D42: ='Serviceability Calculator'!$C330 -> 0
B43: Rental Income 1 | C43: 0 | D43: =ROUND('Serviceability Calculator'!$C343*'Serviceability Calculator'!$D343,2) -> 0 | K43: % Ownership applied to Rent Received
B44: Rental Income 2 | C44: 0 | D44: =ROUND('Serviceability Calculator'!$C344*'Serviceability Calculator'!$D344,2) -> 0
B45: Rental Income 3 | C45: 0 | D45: =ROUND('Serviceability Calculator'!$C345*'Serviceability Calculator'!$D345,2) -> 0
B46: Rental Income 4 | C46: 0 | D46: =ROUND('Serviceability Calculator'!$C346*'Serviceability Calculator'!$D346,2) -> 0
B47: Rental Income 5 | C47: 0 | D47: =ROUND('Serviceability Calculator'!$C347*'Serviceability Calculator'!$D347,2) -> 0
B48: Rental Income 6 | C48: 0 | D48: =ROUND('Serviceability Calculator'!$C348*'Serviceability Calculator'!$D348,2) -> 0
B49: Rental Income 7 | C49: 0 | D49: =ROUND('Serviceability Calculator'!$C349*'Serviceability Calculator'!$D349,2) -> 0
B50: Rental Income 8 | C50: 0 | D50: =ROUND('Serviceability Calculator'!$C350*'Serviceability Calculator'!$D350,2) -> 0
B51: Rental Income 9 | C51: 0 | D51: =ROUND('Serviceability Calculator'!$C351*'Serviceability Calculator'!$D351,2) -> 0
B52: Rental Income 10 | C52: 0 | D52: =ROUND('Serviceability Calculator'!$C352*'Serviceability Calculator'!$D352,2) -> 0
B53: Total Income | C53: 0 | D53: =SUM(D42:D52) -> 0
B54: Rental Shading | C54: 0 | D54: =SUM(D43:D52)*(1-vRentalShading) -> 0
B55: Gross Annual Income | C55: 0 | D55: =D53-D54 -> 0
B56: Interest Deductions 1 | C56: 0 | D56: =ROUND('Serviceability Calculator'!$E343*'Serviceability Calculator'!$D343*vGearing,2) -> 0 | K56: Gearing Rate entered for the Investment Loan Amount, % Ownership also applied
B57: Interest Deductions 2 | C57: 0 | D57: =ROUND('Serviceability Calculator'!$E344*'Serviceability Calculator'!$D344*vGearing,2) -> 0
B58: Interest Deductions 3 | C58: 0 | D58: =ROUND('Serviceability Calculator'!$E345*'Serviceability Calculator'!$D345*vGearing,2) -> 0
B59: Interest Deductions 4 | C59: 0 | D59: =ROUND('Serviceability Calculator'!$E346*'Serviceability Calculator'!$D346*vGearing,2) -> 0
B60: Interest Deductions 5 | C60: 0 | D60: =ROUND('Serviceability Calculator'!$E347*'Serviceability Calculator'!$D347*vGearing,2) -> 0
B61: Interest Deductions 6 | C61: 0 | D61: =ROUND('Serviceability Calculator'!$E348*'Serviceability Calculator'!$D348*vGearing,2) -> 0
B62: Interest Deductions 7 | C62: 0 | D62: =ROUND('Serviceability Calculator'!$E349*'Serviceability Calculator'!$D349*vGearing,2) -> 0
B63: Interest Deductions 8 | C63: 0 | D63: =ROUND('Serviceability Calculator'!$E350*'Serviceability Calculator'!$D350*vGearing,2) -> 0
B64: Interest Deductions 9 | C64: 0 | D64: =ROUND('Serviceability Calculator'!$E351*'Serviceability Calculator'!$D351*vGearing,2) -> 0
B65: Interest Deductions 10 | C65: 0 | D65: =ROUND('Serviceability Calculator'!$E352*'Serviceability Calculator'!$D352*vGearing,2) -> 0
B66: Taxable Gross Income | C66: 0 | D66: =D55-SUM(D56:D65) -> 0
B67: ="Company Tax @ "&TEXT(vCompanyTaxRate,"0.00%") -> Company Tax @ 25.00% | C67: 0 | D67: =IF(D66<=0,0,ROUND(D66*vCompanyTaxRate,2)) -> 0 | K67: Using Company Tax Rate entered
B68: Company Addbacks | C68: 0 | D68: ='Serviceability Calculator'!$C332+'Serviceability Calculator'!$C334+'Serviceability Calculator'!$C336 -> 0 | K68: Includes Interest, Other Addbacks and Depreciation
B69: Company Profit After Tax | C69: 0 | D69: =D55-D67+D68 -> 0
B71: Commitments (Annual) | C71: Used | D71: Repayment | E71: Limit | F71: ="Assessed at "&TEXT(vFloorRate,"0.00%") -> Assessed at 6.00%
B72: Commitment 1 | C72: =IF(vResidential,MAX(D72,F72),MAX(D72,F72)) -> 0 | D72: ='Serviceability Calculator'!$D360*12 -> 0 | E72: =IF('Serviceability Calculator'!$E360="N/A",0,'Serviceability Calculator'!E360) -> 0 | F72: =IF(E72=0,0,-PMT(vFloorRate/12,vLoanTerm*12,E72)*12) -> 0 | K72: Assessed using Floor Rate entered
B73: Commitment 2 | C73: 0 | D73: ='Serviceability Calculator'!$D361*12 -> 0 | E73: =IF('Serviceability Calculator'!$E361="N/A",0,'Serviceability Calculator'!E361) -> 0 | F73: 0
B74: Commitment 3 | C74: 0 | D74: ='Serviceability Calculator'!$D362*12 -> 0 | E74: =IF('Serviceability Calculator'!$E362="N/A",0,'Serviceability Calculator'!E362) -> 0 | F74: 0
B75: Commitment 4 | C75: 0 | D75: ='Serviceability Calculator'!$D363*12 -> 0 | E75: =IF('Serviceability Calculator'!$E363="N/A",0,'Serviceability Calculator'!E363) -> 0 | F75: 0
B76: Commitment 5 | C76: 0 | D76: ='Serviceability Calculator'!$D364*12 -> 0 | E76: =IF('Serviceability Calculator'!$E364="N/A",0,'Serviceability Calculator'!E364) -> 0 | F76: 0
B77: Commitment 6 | C77: 0 | D77: ='Serviceability Calculator'!$D365*12 -> 0 | E77: =IF('Serviceability Calculator'!$E365="N/A",0,'Serviceability Calculator'!E365) -> 0 | F77: 0
B78: Commitment 7 | C78: 0 | D78: ='Serviceability Calculator'!$D366*12 -> 0 | E78: =IF('Serviceability Calculator'!$E366="N/A",0,'Serviceability Calculator'!E366) -> 0 | F78: 0
B79: Commitment 8 | C79: 0 | D79: ='Serviceability Calculator'!$D367*12 -> 0 | E79: =IF('Serviceability Calculator'!$E367="N/A",0,'Serviceability Calculator'!E367) -> 0 | F79: 0
B80: Commitment 9 | C80: 0 | D80: ='Serviceability Calculator'!$D368*12 -> 0 | E80: =IF('Serviceability Calculator'!$E368="N/A",0,'Serviceability Calculator'!E368) -> 0 | F80: 0
B81: Commitment 10 | C81: 0 | D81: ='Serviceability Calculator'!$D369*12 -> 0 | E81: =IF('Serviceability Calculator'!$E369="N/A",0,'Serviceability Calculator'!E369) -> 0 | F81: 0
B82: Total Repayments | C82: =SUM(C72:C81) -> 0 | D82: =SUM(D72:D81) -> 0 | E82: =SUM(E72:E81) -> 0 | F82: =SUM(F72:F81) -> 0
B83: Credit Cards | C83: =D83 -> 0 | D83: ='Serviceability Calculator'!$C371*vCCRate*12 -> 0 | E83: ='Serviceability Calculator'!C371 -> 0 | F83: =D83 -> 0 | K83: Credit Card Limits x Credit Card Rate entered
B84: Total Commitments | C84: =SUM(C82:C83) -> 0 | D84: =SUM(D82:D83) -> 0 | E84: =SUM(E82:E83) -> 0 | F84: =SUM(F82:F83) -> 0
B85: Living Expenses | C85: =IF(OR(D85>F85),D85,F85) -> 0 | D85: ='Serviceability Calculator'!$C373*12 -> 0 | F85: =vHEM_Amount*12 -> 0 | K85: Higher of Actual or HEM
B86: Loan Applied For | C86: =F86 -> 19113.7623 | D86: ='Serviceability Calculator'!C393 -> 14033.50812 | E86: =vLoan_Amount -> 213213 | F86: ='Serviceability Calculator'!E393 -> 19113.7623
B87: Total Limits | C87: =E87 -> 213213 | E87: =SUM(E84:E86) -> 213213

Sheet HEM Calculator (hidden)
B2: Applicant | C2: Entries | M2: HEM
C3: Postcode | D3: Applying As | E3: Coupled With | F3: Dependents | G3: Gross+NonTax Inc | H3: Poscode Chek | I3: State - Location | J3: Region Check | K3: HEM CoupleID | L3: Couple Income | M3: Region | N3: Household | O3: Dependents | P3: Gr + NonTax Inc | Q3: HEM Row | R3: HEM Col | S3: HEM Dep's > 3 | T3: Benchmark | U3: Minimum | V3: HEM Weekly
B4: 1 | C4: =OFFSET(vApplicant_Postcode,($B4-1)*ROWS(vForm_Applicant),0) -> 0 | D4: =T(OFFSET(vApplicant_Marital,($B4-1)*ROWS(vForm_Applicant),0)) ->  | E4: =OFFSET(vApplicant_Joint,($B4-1)*ROWS(vForm_Applicant),0) -> 0 | F4: =IF($C4=0,"",OFFSET(vApplicant_Dependents,($B4-1)*ROWS(vForm_Applicant),0)) ->  | G4: =IF($C4=0,"",OFFSET(vApplicants_TotalGrossIncome,0,$B4)+OFFSET(vApplicants_NonTaxableIncome,0,$B4)) ->  | H4: =IF($C4=0,"",IF(OR($C4<MIN(OFFSET(tPostcodes,0,0,,1)),$C4>MAX(OFFSET(tPostcodes,0,0,,1))),-1,MATCH($C4,OFFSET(tPostcodes,0,0,,1)))) ->  | I4: =IF($C4=0,"",IF($H4=-1,"Enter a valid Postcode",INDEX(tPostcodes,$H4,3)&" - "&INDEX(tPostcodes,$H4,4))) ->  | J4: =IF($C4=0,"",IF($H4=-1,-1,MATCH($I4,OFFSET(tRegion_HEM,0,2,ROWS(tRegion_HEM),1),0))) ->  | K4: 0 | L4: =IF($D4="Couple",(MATCH($K4,K:K,0)=ROW($K4))*1,0) -> 0 | M4: =IF(OR($C4=0,$H4=-1,ISERROR($H4)),"",OFFSET(tRegion_HEM,J4-1,3,1,1)) ->  | N4: =IF($D4="","",VLOOKUP(D4,tHousehold_HEM,2,FALSE)) ->  | O4: =IF($C4=0,"",IF(F4<=3,F4,"3 and above")) ->  | P4: =IF($C4="","",IF(K4=0,G4,SUMIF(K$4:K$9,K4,G$4:G$9)*L4)) ->  | S4: =IF(OR(O4<=3,R4="",R4=0,Q4="",Q4=0),IF($C4=0,"",0),OFFSET(HEM!$A$1,Q4,R4-1)) ->  | T4: =IF(OR(R4="",R4=0,Q4="",Q4=0),0,OFFSET(HEM!$A$1,Q4-1,R4-1)+(F4-3)*S4) -> 0 | U4: =IF(OR($P4=0,$R4="",$R4=0,$Q4="",$Q4=0),0,_xlfn.MINIFS(OFFSET(HEM!$1:$1,$Q4-1,0),OFFSET(HEM!$1:$1,$Q4-1,0),">10")) -> 0 | V4: =MAX(T4:U4) -> 0 | X4: `
B5: 2 | C5: 0 | E5: 0 | H5: =IF($C5=0,"",IF(OR($C5<MIN(OFFSET(tPostcodes,0,0,,1)),$C5>MAX(OFFSET(tPostcodes,0,0,,1))),-1,MATCH($C5,OFFSET(tPostcodes,0,0,,1)))) ->  | I5: =IF($C5=0,"",IF($H5=-1,"Enter a valid Postcode",INDEX(tPostcodes,$H5,3)&" - "&INDEX(tPostcodes,$H5,4))) ->  | K5: 0 | L5: =IF($D5="Couple",(MATCH($K5,K:K,0)=ROW($K5))*1,0) -> 0 | O5: =IF($C5=0,"",IF(F5<=3,F5,"3 and above")) ->  | S5: =IF(OR(O5<=3,R5="",R5=0,Q5="",Q5=0),IF($C5=0,"",0),OFFSET(HEM!$A$1,Q5,R5-1)) ->  | T5: =IF(OR(R5="",R5=0,Q5="",Q5=0),0,OFFSET(HEM!$A$1,Q5-1,R5-1)+(F5-3)*S5) -> 0 | U5: =IF(OR($P5=0,$R5="",$R5=0,$Q5="",$Q5=0),0,_xlfn.MINIFS(OFFSET(HEM!$1:$1,$Q5-1,0),OFFSET(HEM!$1:$1,$Q5-1,0),">10")) -> 0 | V5: =MAX(T5:U5) -> 0
B6: 3 | C6: 0 | E6: 0 | I6: =IF($C6=0,"",IF($H6=-1,"Enter a valid Postcode",INDEX(tPostcodes,$H6,3)&" - "&INDEX(tPostcodes,$H6,4))) ->  | K6: 0 | L6: 0 | S6: =IF(OR(O6<=3,R6="",R6=0,Q6="",Q6=0),IF($C6=0,"",0),OFFSET(HEM!$A$1,Q6,R6-1)) ->  | T6: =IF(OR(R6="",R6=0,Q6="",Q6=0),0,OFFSET(HEM!$A$1,Q6-1,R6-1)+(F6-3)*S6) -> 0 | U6: =IF(OR($P6=0,$R6="",$R6=0,$Q6="",$Q6=0),0,_xlfn.MINIFS(OFFSET(HEM!$1:$1,$Q6-1,0),OFFSET(HEM!$1:$1,$Q6-1,0),">10")) -> 0 | V6: 0
B7: 4 | C7: 0 | E7: 0 | I7: =IF($C7=0,"",IF($H7=-1,"Enter a valid Postcode",INDEX(tPostcodes,$H7,3)&" - "&INDEX(tPostcodes,$H7,4))) ->  | K7: 0 | L7: 0 | S7: =IF(OR(O7<=3,R7="",R7=0,Q7="",Q7=0),IF($C7=0,"",0),OFFSET(HEM!$A$1,Q7,R7-1)) ->  | T7: =IF(OR(R7="",R7=0,Q7="",Q7=0),0,OFFSET(HEM!$A$1,Q7-1,R7-1)+(F7-3)*S7) -> 0 | U7: =IF(OR($P7=0,$R7="",$R7=0,$Q7="",$Q7=0),0,_xlfn.MINIFS(OFFSET(HEM!$1:$1,$Q7-1,0),OFFSET(HEM!$1:$1,$Q7-1,0),">10")) -> 0 | V7: 0
B8: 5 | C8: 0 | E8: 0 | I8: =IF($C8=0,"",IF($H8=-1,"Enter a valid Postcode",INDEX(tPostcodes,$H8,3)&" - "&INDEX(tPostcodes,$H8,4))) ->  | K8: 0 | L8: 0 | S8: =IF(OR(O8<=3,R8="",R8=0,Q8="",Q8=0),IF($C8=0,"",0),OFFSET(HEM!$A$1,Q8,R8-1)) ->  | T8: =IF(OR(R8="",R8=0,Q8="",Q8=0),0,OFFSET(HEM!$A$1,Q8-1,R8-1)+(F8-3)*S8) -> 0 | U8: =IF(OR($P8=0,$R8="",$R8=0,$Q8="",$Q8=0),0,_xlfn.MINIFS(OFFSET(HEM!$1:$1,$Q8-1,0),OFFSET(HEM!$1:$1,$Q8-1,0),">10")) -> 0 | V8: 0
B9: 6 | C9: 0 | E9: 0 | I9: =IF($C9=0,"",IF($H9=-1,"Enter a valid Postcode",INDEX(tPostcodes,$H9,3)&" - "&INDEX(tPostcodes,$H9,4))) ->  | K9: 0 | L9: 0 | S9: =IF(OR(O9<=3,R9="",R9=0,Q9="",Q9=0),IF($C9=0,"",0),OFFSET(HEM!$A$1,Q9,R9-1)) ->  | T9: =IF(OR(R9="",R9=0,Q9="",Q9=0),0,OFFSET(HEM!$A$1,Q9-1,R9-1)+(F9-3)*S9) -> 0 | U9: =IF(OR($P9=0,$R9="",$R9=0,$Q9="",$Q9=0),0,_xlfn.MINIFS(OFFSET(HEM!$1:$1,$Q9-1,0),OFFSET(HEM!$1:$1,$Q9-1,0),">10")) -> 0 | V9: 0
R10: =HEM_col(P10) -> 
R11: =HEM_col(P11) -> 

Sheet Drivers (hidden)
AI1: Printed Form Rows Hidden | AR1: Printed Form Sections | BA1: Printed Form Rows Print
B2: Defaults | E2: Application | H2: Assessment | K2: Repayments | M2: I/O Period | O2: State | P2: Location | Q2: State - Location | R2: HEM Region | T2: Marital | U2: HEM Houshold | X2: Joint with Applicant | AE2: Commitments | AG2: Frequency | AI2: Row | AJ2: Applicant 1 | AK2: Applicant 2 | AL2: Applicant 3 | AM2: Applicant 4 | AN2: Applicant 5 | AO2: Applicant 6 | AP2: Company | AR2: Section | AS2: 1 | AT2: 2 | AU2: 3 | AV2: 4 | AW2: 5 | AX2: 6 | AY2: Company | BA2: Row | BB2: 1 | BC2: 2 | BD2: 3 | BE2: 4 | BF2: 5 | BG2: 6 | BH2: Company
K3: Principal and Interest | M3: 0 | O3: NSW | P3: Inner City | Q3: NSW - Inner City | R3: Sydney | T3: Sole Borrower | U3: Couple | W3: Applicant | X3: 1 | Y3: 2 | Z3: 3 | AA3: 4 | AB3: 5 | AC3: 6 | AE3: Other Mortgage | AG3: Annually | AI3: 1 | AJ3: 30 | AR3: 0 | AS3: =AND(AS$2*1<=vApplicants,OR(COUNTIF(AS$4:AS$6,TRUE)>0,AS$7*1>0)) -> TRUE | AT3: FALSE | AU3: FALSE | AV3: FALSE | AW3: FALSE | AX3: FALSE | AY3: =AND(vCompany,OR(COUNTIF(AY$4,TRUE)>0,AY$5*1>0)) -> FALSE | BA3: 1 | BB3: =IF(AS$3,1,0) -> 1 | BC3: =IF(AT$3,1,0) -> 0 | BD3: 0 | BE3: 0 | BF3: 0 | BG3: 0 | BH3: =IF(AY$3,1,0) -> 0
B4: Applicants Max | C4: 6 | E4: LVR | F4: =IF(OR(vLoan_Amount=0,vLoan_Security=0),0,ROUND(vLoan_Amount/vLoan_Security,4)) -> 0.2132 | H4: Total Income | I4: =Calculations!C19+Calculations!C35+Calculations!C36+Calculations!C53+Calculations!C68 -> 150000 | K4: Interest Only | M4: 1 | O4: NSW | P4: Metro | Q4: NSW - Metro | R4: Sydney | T4: Single | U4: Single | W4: Couple | X4: =(OFFSET(vApplicant_Marital,(X$3-1)*vApplicant_Rows,0)="") -> TRUE | Y4: TRUE | Z4: TRUE | AA4: TRUE | AB4: TRUE | AC4: TRUE | AE4: Rental Expense | AG4: Monthly | AI4: 2 | AJ4: 6 | AR4: 1 | AS4: =SUM(ABS(OFFSET('Serviceability Calculator'!$C$28:$C$30,(AS$2-1)*vApplicant_Rows,0)))>0 -> TRUE | AT4: =SUM(ABS(OFFSET('Serviceability Calculator'!$C$28:$C$30,(AT$2-1)*vApplicant_Rows,0)))>0 -> FALSE | AU4: =SUM(ABS(OFFSET('Serviceability Calculator'!$C$28:$C$30,(AU$2-1)*vApplicant_Rows,0)))>0 -> FALSE | AV4: =SUM(ABS(OFFSET('Serviceability Calculator'!$C$28:$C$30,(AV$2-1)*vApplicant_Rows,0)))>0 -> FALSE | AW4: =SUM(ABS(OFFSET('Serviceability Calculator'!$C$28:$C$30,(AW$2-1)*vApplicant_Rows,0)))>0 -> FALSE | AX4: =SUM(ABS(OFFSET('Serviceability Calculator'!$C$28:$C$30,(AX$2-1)*vApplicant_Rows,0)))>0 -> FALSE | AY4: =SUM(ABS('Serviceability Calculator'!$C$330:$C$336))>0 -> FALSE | BA4: 2 | BB4: =IF(AS$3,1,0) -> 1 | BC4: 0 | BD4: 0 | BE4: 0 | BF4: 0 | BG4: 0 | BH4: 0
B5: Open | C5: ˅ | E5: LVR Amount | F5: =IF(vLoan_Security=0,100000000,vLoan_Security) -> 1000000 | M5: 2 | O5: NSW | P5: Non Metro | Q5: NSW - Non Metro | R5: Balance of NSW | T5: Couple | U5: Couple | W5: Couple | X5: =(OFFSET(vApplicant_Marital,(X$3-1)*vApplicant_Rows,0)="Couple") -> FALSE | Y5: FALSE | Z5: FALSE | AA5: FALSE | AB5: FALSE | AC5: FALSE | AE5: Personal Loan | AG5: Weekly | AI5: 3 | AJ5: 15 | AR5: 2 | AS5: =SUM(ABS(OFFSET('Serviceability Calculator'!$C$34:$C$40,(AS$2-1)*vApplicant_Rows,0)))>0 -> FALSE | AT5: =SUM(ABS(OFFSET('Serviceability Calculator'!$C$34:$C$40,(AT$2-1)*vApplicant_Rows,0)))>0 -> FALSE | AU5: =SUM(ABS(OFFSET('Serviceability Calculator'!$C$34:$C$40,(AU$2-1)*vApplicant_Rows,0)))>0 -> FALSE | AV5: =SUM(ABS(OFFSET('Serviceability Calculator'!$C$34:$C$40,(AV$2-1)*vApplicant_Rows,0)))>0 -> FALSE | AW5: =SUM(ABS(OFFSET('Serviceability Calculator'!$C$34:$C$40,(AW$2-1)*vApplicant_Rows,0)))>0 -> FALSE | AX5: =SUM(ABS(OFFSET('Serviceability Calculator'!$C$34:$C$40,(AX$2-1)*vApplicant_Rows,0)))>0 -> FALSE | AY5: =vCompany_Properties -> 0 | BA5: 3 | BB5: =IF(AS$3,1,0) -> 1 | BC5: 0 | BD5: 0 | BE5: 0 | BF5: 0 | BG5: 0 | BH5: 0
B6: Close | C6: ˄ | E6: LVR Security | F6: =IF(vLoan_Amount=0,100000000,vLoan_Amount) -> 213213 | H6: Net Income | I6: ='Serviceability Calculator'!E$385 -> 106433 | M6: 3 | O6: VIC | P6: Inner City | Q6: VIC - Inner City | R6: Melbourne | W6: Row | X6: =IF(X4,12,IF(X$5,7,6)) -> 12 | Y6: =IF(Y4,12,IF(Y$5,7,6)) -> 12 | Z6: 12 | AA6: 12 | AB6: 12 | AC6: 12 | AE6: Hire Purchase / Lease | AG6: Fortnighly | AI6: 4 | AJ6: 8.5 | AR6: 3 | AS6: =SUM(ABS(OFFSET('Serviceability Calculator'!$C$44:$C$50,(AS$2-1)*vApplicant_Rows,0)))>0 -> FALSE | AT6: =SUM(ABS(OFFSET('Serviceability Calculator'!$C$44:$C$50,(AT$2-1)*vApplicant_Rows,0)))>0 -> FALSE | AU6: =SUM(ABS(OFFSET('Serviceability Calculator'!$C$44:$C$50,(AU$2-1)*vApplicant_Rows,0)))>0 -> FALSE | AV6: =SUM(ABS(OFFSET('Serviceability Calculator'!$C$44:$C$50,(AV$2-1)*vApplicant_Rows,0)))>0 -> FALSE | AW6: =SUM(ABS(OFFSET('Serviceability Calculator'!$C$44:$C$50,(AW$2-1)*vApplicant_Rows,0)))>0 -> FALSE | AX6: =SUM(ABS(OFFSET('Serviceability Calculator'!$C$44:$C$50,(AX$2-1)*vApplicant_Rows,0)))>0 -> FALSE | BA6: 4 | BB6: 1 | BC6: 0 | BD6: 0 | BE6: 0 | BF6: 0 | BG6: 0 | BH6: 0
E7: LVR Passed | F7: =(vLVR<=100%) -> TRUE | M7: 4 | O7: VIC | P7: Metro | Q7: VIC - Metro | R7: Melbourne | W7: Rows | X7: =IF(X$5,IF(vLoan_Applicants=0,1,vLoan_Applicants-1),1) -> 1 | Y7: 1 | Z7: 1 | AA7: 1 | AB7: 1 | AC7: 1 | AE7: HECS / Education | AI7: 5 | AJ7: 15 | AR7: 4 | AS7: =SUM(OFFSET(vApplicant_Properties,(AS$2-1)*vApplicant_Rows,0)) -> 0 | AT7: 0 | AU7: 0 | AV7: 0 | AW7: 0 | AX7: 0 | BA7: 5 | BB7: 1 | BC7: 0 | BD7: 0 | BE7: 0 | BF7: 0 | BG7: 0 | BH7: 0
B8: Defaults | H8: Living Costs | I8: ='Serviceability Calculator'!E$389 -> 0 | M8: 5 | O8: VIC | P8: Non Metro | Q8: VIC - Non Metro | R8: Balance of VIC | W8: List Range | X8: ="Drivers!"&CELL("address",OFFSET(tApplicant_Joint,X6,X3-1,1,1))&":"&CELL("address",OFFSET(tApplicant_Joint,X6+X7-1,X3-1,1,1)) -> Drivers!$X$15:$X$15 | Y8: ="Drivers!"&CELL("address",OFFSET(tApplicant_Joint,Y6,Y3-1,1,1))&":"&CELL("address",OFFSET(tApplicant_Joint,Y6+Y7-1,Y3-1,1,1)) -> Drivers!$Y$15:$Y$15 | Z8: ="Drivers!"&CELL("address",OFFSET(tApplicant_Joint,Z6,Z3-1,1,1))&":"&CELL("address",OFFSET(tApplicant_Joint,Z6+Z7-1,Z3-1,1,1)) -> Drivers!$Z$15:$Z$15 | AA8: ="Drivers!"&CELL("address",OFFSET(tApplicant_Joint,AA6,AA3-1,1,1))&":"&CELL("address",OFFSET(tApplicant_Joint,AA6+AA7-1,AA3-1,1,1)) -> Drivers!$AA$15:$AA$15 | AB8: ="Drivers!"&CELL("address",OFFSET(tApplicant_Joint,AB6,AB3-1,1,1))&":"&CELL("address",OFFSET(tApplicant_Joint,AB6+AB7-1,AB3-1,1,1)) -> Drivers!$AB$15:$AB$15 | AC8: ="Drivers!"&CELL("address",OFFSET(tApplicant_Joint,AC6,AC3-1,1,1))&":"&CELL("address",OFFSET(tApplicant_Joint,AC6+AC7-1,AC3-1,1,1)) -> Drivers!$AC$15:$AC$15 | AE8: Child Maintenance | AI8: 6 | AJ8: 6 | AR8: 5 | BA8: 6 | BB8: 1 | BC8: 0 | BD8: 0 | BE8: 0 | BF8: 0 | BG8: 0 | BH8: =IF(AND(AY$3,AY$4),1,0) -> 0
B9: OpenClose Form | C9: 1 | E9: I/O | F9: =vLoan_Type=OFFSET(tRepayments,1,0,1,1) -> FALSE | O9: QLD | P9: Inner City | Q9: QLD - Inner City | R9: Brisbane | X9: 0 | Y9: 0 | Z9: 0 | AA9: 0 | AB9: 0 | AC9: 0 | AE9: Other Commitment | AI9: 7 | AJ9: 15 | AR9: 6 | BA9: 7 | BB9: 1 | BC9: 0 | BD9: 0 | BE9: 0 | BF9: 0 | BG9: 0 | BH9: =IF(AND(AY$3,AY$4),1,0) -> 0
B10: OpenClose Open | C10: FALSE | H10: Commitments | I10: ='Serviceability Calculator'!E$387 -> 0 | O10: QLD | P10: Metro | Q10: QLD - Metro | R10: Brisbane | X10: 2 | Y10: 1 | Z10: 1 | AA10: 1 | AB10: 1 | AC10: 1 | AI10: 8 | AJ10: 6 | AR10: 7 | BA10: 8 | BB10: 1 | BC10: 0 | BD10: 0 | BE10: 0 | BF10: 0 | BG10: 0 | BH10: 0
E11: Applicants | F11: =IF(vLoan_Applicants<1,0,vLoan_Applicants) -> 1 | O11: QLD | P11: Non Metro | Q11: QLD - Non Metro | R11: Balance of QLD | X11: 3 | Y11: 3 | Z11: 2 | AA11: 2 | AB11: 2 | AC11: 2 | AI11: 9 | AJ11: 20.25 | AR11: 8 | BA11: 9 | BB11: 1 | BC11: 0 | BD11: 0 | BE11: 0 | BF11: 0 | BG11: 0 | BH11: 0
B12: HEM | E12: Applicant Rows | F12: =ROWS(vForm_Applicant) -> 51 | H12: Debt Assessed | I12: ='Serviceability Calculator'!E$387+'Serviceability Calculator'!E$389 -> 0 | O12: SA | P12: Inner City | Q12: SA - Inner City | R12: Adelaide | X12: 4 | Y12: 4 | Z12: 4 | AA12: 3 | AB12: 3 | AC12: 3 | AI12: 10 | AJ12: 6 | AR12: 9 | BA12: 10 | BB12: =IF(AND(AS$3,AS$4),1,0) -> 1 | BC12: =IF(AND(AT$3,AT$4),1,0) -> 0 | BD12: 0 | BE12: 0 | BF12: 0 | BG12: 0 | BH12: 0
E13: Applicant Joints | F13: =IF(vApplicants-1<=0,1,vApplicants-1) -> 1 | O13: SA | P13: Metro | Q13: SA - Metro | R13: Adelaide | X13: 5 | Y13: 5 | Z13: 5 | AA13: 5 | AB13: 4 | AC13: 4 | AI13: 11 | AJ13: 15 | AR13: 10 | BA13: 11 | BB13: =IF(AND(AS$3,AS$4),1,0) -> 1 | BC13: 0 | BD13: 0 | BE13: 0 | BF13: 0 | BG13: 0 | BH13: 0
B14: Income Max | C14: =MAX(HEM!$2:$2) -> 357000 | H14: Debt Serviced | I14: ='Serviceability Calculator'!E$387+'Serviceability Calculator'!E$393 -> 19113.7623 | O14: SA | P14: Non Metro | Q14: SA - Non Metro | R14: Balance of SA | X14: 6 | Y14: 6 | Z14: 6 | AA14: 6 | AB14: 6 | AC14: 5 | AI14: 12 | AJ14: 6 | BA14: 12 | BB14: 1 | BC14: 0 | BD14: 0 | BE14: 0 | BF14: 0 | BG14: 0 | BH14: 0
B15: CoupleID | C15: =MATCH("HEM "&B15,OFFSET(tApplicant_HEM,-1,0,1),0) -> 10 | E15: Company | F15: =(vLoan_Company="Yes") -> FALSE | O15: WA | P15: Inner City | Q15: WA - Inner City | R15: Perth | AI15: 13 | AJ15: 15 | BA15: 13 | BB15: 1 | BC15: 0 | BD15: 0 | BE15: 0 | BF15: 0 | BG15: 0 | BH15: 0
B16: Row | C16: =MATCH("HEM "&B16,OFFSET(tApplicant_HEM,-1,0,1),0) -> 16 | H16: Repayments | I16: =IF(vLoan_Term=0,0,-PMT((vLoan_Rate+vBuffer)/12,(vLoan_Term-IF(bIO,vLoan_IOPeriod*12,0)),vLoan_Amount)*12) -> 19113.7623 | O16: WA | P16: Metro | Q16: WA - Metro | R16: Perth | AI16: 14 | AJ16: 6 | BA16: 14 | BB16: =IF(AS$3,1,0) -> 1 | BC16: =IF(AT$3,1,0) -> 0 | BD16: =IF(AU$3,1,0) -> 0 | BE16: =IF(AV$3,1,0) -> 0 | BF16: =IF(AW$3,1,0) -> 0 | BG16: =IF(AX$3,1,0) -> 0 | BH16: =IF(AY$3,1,0) -> 0
B17: Col | C17: =MATCH("HEM "&B17,OFFSET(tApplicant_HEM,-1,0,1),0) -> 17 | E17: Regulated | F17: =(vLoan_Regulated<>"No") -> TRUE | O17: WA | P17: Non Metro | Q17: WA - Non Metro | R17: Balance of WA | AI17: 15 | AJ17: 20.25 | BA17: 15 | BB17: 1 | BC17: 0 | BD17: 0 | BE17: 0 | BF17: 0 | BG17: 0 | BH17: 0
E18: Refinance | F18: =(vLoan_Purpose="Refinance") -> FALSE | H18: Avaliable Income | I18: ='Serviceability Calculator'!E$391 -> 106433 | O18: TAS | P18: Inner City | Q18: TAS - Inner City | R18: Hobart | AI18: 16 | AJ18: 0 | BA18: 16 | BB18: =IF(AND(AS$3,AS$5),1,0) -> 0 | BC18: =IF(AND(AT$3,AT$5),1,0) -> 0 | BD18: 0 | BE18: 0 | BF18: 0 | BG18: 0 | BH18: =IF(AND(AY$3,AY$5*1>=1),1,0) -> 0
E19: Residential | F19: =vRegulated -> TRUE | O19: TAS | P19: Metro | Q19: TAS - Metro | R19: Hobart | AI19: 17 | AJ19: 0 | BA19: 17 | BB19: =IF(AND(AS$3,AS$5),1,0) -> 0 | BC19: 0 | BD19: 0 | BE19: 0 | BF19: 0 | BG19: 0 | BH19: =IF(AND(AY$3,AY$5*1>=1),1,0) -> 0
E20: Buffer | F20: =IF(vResidential,IF(vRefinance,vBuffer_Refinance_Residential,vBuffer_Residential),IF(vRefinance,vBuffer_Refinance_Commercial,vBuffer_Commercial)) -> 0.03 | H20: NDI Ratio | I20: =ROUND(IF(vAssessed_Commitments+vAssessed_Repayments=0,1,(vAssessed_Net_Income-vAssessed_LivingCosts)/(vAssessed_Commitments+vAssessed_Repayments)),2) -> 5.57 | O20: TAS | P20: Non Metro | Q20: TAS - Non Metro | R20: Balance of TAS | AI20: 18 | AJ20: 0 | BA20: 18 | BB20: 0 | BC20: 0 | BD20: 0 | BE20: 0 | BF20: 0 | BG20: 0 | BH20: 0
E21: Floor Rate | F21: =IF(vResidential,vFloorRate_Residential,vFloorRate_Commercial) -> 0.06 | O21: ACT | P21: Metro | Q21: ACT - Metro | R21: ACT & NT | AI21: 19 | AJ21: 0 | BA21: 19 | BB21: 0 | BC21: 0 | BD21: 0 | BE21: 0 | BF21: 0 | BG21: 0 | BH21: 0
E22: Interest Gearing | F22: =IF(vResidential,vGearing_Residential,vGearing_Commercial) -> 0.0375 | H22: NDI Factor | I22: =TEXT(vAssessed_NDI_Ratio,"0.00")&" : 1" -> 5.57 : 1 | O22: ACT | P22: Non Metro | Q22: ACT - Non Metro | R22: ACT & NT | AI22: 20 | AJ22: 0 | BA22: 20 | BB22: 0 | BC22: 0 | BD22: 0 | BE22: 0 | BF22: 0 | BG22: 0 | BH22: 0
E23: Credit Card | F23: =IF(vResidential,vCCRate_Residential,vCCRate_Commercial) -> 0.038 | O23: NT | P23: Metro | Q23: NT - Metro | R23: ACT & NT | AI23: 21 | AJ23: 0 | BA23: 21 | BB23: 0 | BC23: 0 | BD23: 0 | BE23: 0 | BF23: 0 | BG23: 0 | BH23: =IF(AND(AY$3,AY$5*1>=2),1,0) -> 0
E24: Loan Term | F24: =IF(vResidential,vLoanTerm_Residential,vLoanTerm_Commercial) -> 30 | H24: DSC Factor | I24: =TEXT(IF(OR(vAssessed_Net_Income=0,vServiced_Debt=0),1.25,vAssessed_Net_Income/vServiced_Debt),"0.00")&" : 1" -> 5.57 : 1 | O24: NT | P24: Non Metro | Q24: NT - Non Metro | R24: ACT & NT | AI24: 22 | AJ24: 0 | BA24: 22 | BB24: 0 | BC24: 0 | BD24: 0 | BE24: 0 | BF24: 0 | BG24: 0 | BH24: =IF(AND(AY$3,AY$5*1>=3),1,0) -> 0
E25: Rental Shading | F25: =IF(vResidential,vRentalShading_Residential,vRentalShading_Commercial) -> 0.8 | AI25: 23 | AJ25: 0 | BA25: 23 | BB25: 0 | BC25: 0 | BD25: 0 | BE25: 0 | BF25: 0 | BG25: 0 | BH25: =IF(AND(AY$3,AY$5*1>=4),1,0) -> 0
E26: Prperty Expense | F26: =IF(vResidential,vPropertyExpense_Residential,vPropertyExpense_Commercial) -> 0 | H26: Factor | I26: =IF(vAssessed_NDI_Ratio<1,3,IF(vAssessed_Available_Income<vAssessed_Repayments,2,1)) -> 1 | AI26: 24 | AJ26: 6 | BA26: 24 | BB26: =IF(AS$3,1,0) -> 1 | BC26: =IF(AT$3,1,0) -> 0 | BD26: =IF(AU$3,1,0) -> 0 | BE26: =IF(AV$3,1,0) -> 0 | BF26: =IF(AW$3,1,0) -> 0 | BG26: =IF(AX$3,1,0) -> 0 | BH26: =IF(AND(AY$3,AY$5*1>=5),1,0) -> 0
AI27: 25 | AJ27: 20.25 | BA27: 25 | BB27: 1 | BC27: 0 | BD27: 0 | BE27: 0 | BF27: 0 | BG27: 0 | BH27: =IF(AND(AY$3,AY$5*1>=6),1,0) -> 0
E28: Repayments | F28: =IF(vLoan_Term=0,0,IF(bIO,vLoan_Amount*vLoan_Rate,-PMT(vLoan_Rate/12,vLoan_Term,vLoan_Amount)*12)) -> 14033.50812 | H28: Debt Actual | I28: ='Serviceability Calculator'!C$387+'Serviceability Calculator'!C$389 -> 0 | AI28: 26 | AJ28: 0 | BA28: 26 | BB28: =IF(AND(AS$3,AS$6),1,0) -> 0 | BC28: =IF(AND(AT$3,AT$6),1,0) -> 0 | BD28: 0 | BE28: 0 | BF28: 0 | BG28: 0 | BH28: =IF(AND(AY$3,AY$5*1>=7),1,0) -> 0
AI29: 27 | AJ29: 0 | BA29: 27 | BB29: =IF(AND(AS$3,AS$6),1,0) -> 0 | BC29: 0 | BD29: 0 | BE29: 0 | BF29: 0 | BG29: 0 | BH29: =IF(AND(AY$3,AY$5*1>=8),1,0) -> 0
H30: Commitment Limit | I30: =Calculations!C87 -> 213213 | AI30: 28 | AJ30: 0 | BA30: 28 | BB30: 0 | BC30: 0 | BD30: 0 | BE30: 0 | BF30: 0 | BG30: 0 | BH30: =IF(AND(AY$3,AY$5*1>=9),1,0) -> 0
AI31: 29 | AJ31: 0 | BA31: 29 | BB31: 0 | BC31: 0 | BD31: 0 | BE31: 0 | BF31: 0 | BG31: 0 | BH31: =IF(AND(AY$3,AY$5*1>=10),1,0) -> 0
H32: DTI Factor | I32: =TEXT(IF(OR(vAssessed_Commitment_Limit=0,vAssessed_Income=0),1,vAssessed_Commitment_Limit/vAssessed_Income),"0.0") -> 1.4 | AI32: 30 | AJ32: 0 | BA32: 30 | BB32: 0 | BC32: 0 | BD32: 0 | BE32: 0 | BF32: 0 | BG32: 0 | BH32: =IF(AY$3,1,0) -> 0
AI33: 31 | AJ33: 0 | BA33: 31 | BB33: 0 | BC33: 0 | BD33: 0 | BE33: 0 | BF33: 0 | BG33: 0 | BH33: 0
AI34: 32 | AJ34: 0 | BA34: 32 | BB34: 0 | BC34: 0 | BD34: 0 | BE34: 0 | BF34: 0 | BG34: 0
AI35: 33 | AJ35: 0 | BA35: 33 | BB35: 0 | BC35: 0 | BD35: 0 | BE35: 0 | BF35: 0 | BG35: 0
AI36: 34 | AJ36: 6 | BA36: 34 | BB36: =IF(AS$3,1,0) -> 1 | BC36: =IF(AT$3,1,0) -> 0 | BD36: =IF(AU$3,1,0) -> 0 | BE36: =IF(AV$3,1,0) -> 0 | BF36: =IF(AW$3,1,0) -> 0 | BG36: =IF(AX$3,1,0) -> 0
AI37: 35 | AJ37: 20.25 | BA37: 35 | BB37: 1 | BC37: 0 | BD37: 0 | BE37: 0 | BF37: 0 | BG37: 0
AI38: 36 | AJ38: 6 | BA38: 36 | BB38: =IF(AND(AS$3,AS$7*1>=1),1,0) -> 0 | BC38: =IF(AND(AT$3,AT$7*1>=1),1,0) -> 0 | BD38: 0 | BE38: =IF(AND(AV$3,AV$7*1>=1),1,0) -> 0 | BF38: 0 | BG38: 0
AI39: 37 | AJ39: 15 | BA39: 37 | BB39: =IF(AND(AS$3,AS$7*1>=1),1,0) -> 0 | BC39: 0 | BD39: 0 | BE39: 0 | BF39: 0 | BG39: 0
AI40: 38 | AJ40: 6 | BA40: 38 | BB40: 0 | BC40: 0 | BD40: 0 | BE40: 0 | BF40: 0 | BG40: 0
AI41: 39 | AJ41: 15 | BA41: 39 | BB41: 0 | BC41: 0 | BD41: 0 | BE41: 0 | BF41: 0 | BG41: 0
AI42: 40 | AJ42: 15 | BA42: 40 | BB42: 0 | BC42: 0 | BD42: 0 | BE42: 0 | BF42: 0 | BG42: 0
AI43: 41 | AJ43: 0 | BA43: 41 | BB43: =IF(AND(AS$3,AS$7*1>=2),1,0) -> 0 | BC43: =IF(AND(AT$3,AT$7*1>=2),1,0) -> 0 | BD43: 0 | BE43: 0 | BF43: 0 | BG43: 0
AI44: 42 | AJ44: 0 | BA44: 42 | BB44: =IF(AND(AS$3,AS$7*1>=3),1,0) -> 0 | BC44: =IF(AND(AT$3,AT$7*1>=3),1,0) -> 0 | BD44: 0 | BE44: 0 | BF44: 0 | BG44: 0
AI45: 43 | AJ45: 0 | BA45: 43 | BB45: =IF(AND(AS$3,AS$7*1>=4),1,0) -> 0 | BC45: =IF(AND(AT$3,AT$7*1>=4),1,0) -> 0 | BD45: 0 | BE45: 0 | BF45: 0 | BG45: 0
AI46: 44 | AJ46: 0 | BA46: 44 | BB46: =IF(AND(AS$3,AS$7*1>=5),1,0) -> 0 | BC46: =IF(AND(AT$3,AT$7*1>=5),1,0) -> 0 | BD46: 0 | BE46: 0 | BF46: 0 | BG46: 0
AI47: 45 | AJ47: 0 | BA47: 45 | BB47: =IF(AND(AS$3,AS$7*1>=6),1,0) -> 0 | BC47: =IF(AND(AT$3,AT$7*1>=6),1,0) -> 0 | BD47: 0 | BE47: 0 | BF47: 0 | BG47: 0
AI48: 46 | AJ48: 0 | BA48: 46 | BB48: =IF(AND(AS$3,AS$7*1>=7),1,0) -> 0 | BC48: =IF(AND(AT$3,AT$7*1>=7),1,0) -> 0 | BD48: 0 | BE48: 0 | BF48: 0 | BG48: 0
AI49: 47 | AJ49: 0 | BA49: 47 | BB49: =IF(AND(AS$3,AS$7*1>=8),1,0) -> 0 | BC49: =IF(AND(AT$3,AT$7*1>=8),1,0) -> 0 | BD49: 0 | BE49: 0 | BF49: 0 | BG49: 0
AI50: 48 | AJ50: 0 | BA50: 48 | BB50: =IF(AND(AS$3,AS$7*1>=9),1,0) -> 0 | BC50: =IF(AND(AT$3,AT$7*1>=9),1,0) -> 0 | BD50: 0 | BE50: 0 | BF50: 0 | BG50: 0
AI51: 49 | AJ51: 0 | BA51: 49 | BB51: =IF(AND(AS$3,AS$7*1>=10),1,0) -> 0 | BC51: =IF(AND(AT$3,AT$7*1>=10),1,0) -> 0 | BD51: 0 | BE51: 0 | BF51: 0 | BG51: 0
AI52: 50 | AJ52: 6 | BA52: 50 | BB52: =IF(AS$3,1,0) -> 1 | BC52: =IF(AT$3,1,0) -> 0 | BD52: 0 | BE52: 0 | BF52: 0 | BG52: 0
AI53: 51 | AJ53: 18 | BA53: 51 | BB53: =IF(AS$3,1,0) -> 1 | BC53: 0 | BD53: 0 | BE53: 0 | BF53: 0 | BG53: 0
AI54: 52 | BA54: 52
AI55: 53 | BA55: 53
AI56: 54 | BA56: 54
AI57: 55 | BA57: 55
AI58: 56 | BA58: 56
AI59: 57 | BA59: 57
AI60: 58 | BA60: 58
AI61: 59 | BA61: 59
AI62: 60 | BA62: 60
AI63: 61 | BA63: 61
AI64: 62 | BA64: 62
AI65: 63 | BA65: 63
AI66: 64 | BA66: 64
AI67: 65 | BA67: 65
AI68: 66 | BA68: 66
AI69: 67 | BA69: 67
AI70: 68 | BA70: 68
AI71: 69 | BA71: 69
AI72: 70 | BA72: 70
AI73: 71 | BA73: 71
AI74: 72 | BA74: 72
AI75: 73 | BA75: 73
AI76: 74 | BA76: 74
AI77: 75 | BA77: 75
AI78: 76 | BA78: 76
AI79: 77 | BA79: 77
AI80: 78 | BA80: 78
AI81: 79 | BA81: 79
AI82: 80 | BA82: 80
AI83: 81 | BA83: 81
AI84: 82 | BA84: 82
AI85: 83 | BA85: 83
AI86: 84 | BA86: 84
AI87: 85 | BA87: 85
AI88: 86 | BA88: 86
AI89: 87 | BA89: 87
AI90: 88 | BA90: 88
AI91: 89 | BA91: 89
AI92: 90 | BA92: 90
AI93: 91 | BA93: 91
AI94: 92 | BA94: 92
AI95: 93 | BA95: 93
AI96: 94 | BA96: 94
AI97: 95 | BA97: 95
AI98: 96 | BA98: 96
AI99: 97 | BA99: 97
AI100: 98 | BA100: 98
AI101: 99 | BA101: 99
AI102: 100 | BA102: 100

Sheet Scope Inputs (hidden)
B2: https://caps.helia.com.au/serviceability-calculator/ | I2: \\\\\\\\\\\\\\\\\\\\\\\\\\\\\\\\\\\\\\\\\\\\\\\\\\\\\\\\\\\\\\\\\\\\\\\\\\\\\\
J3: YBR Calculator
J4: Macquarie Calculator
B5: APPLICATION NAME (not Applicant Name)
B8: PER APPLICANT
B10: PAYG
B12: Income Type | D12: Gross Only
B14: Include Variable Income, including Add more
B16: SELF EMPLOYED
B18: As is
B20: RENTAL INCOME
B22: Amount | C22: Frequency | D22: Ownership | E22: Investment Loan
B24: Rental Type no required
B27: NON Taxable
B29: As is
B34: COMPANY
B36: Income | D36: As is
B38: Rental Income | D38: As is | E38: (remove Rental Type)
B45: COMMITMENTS | D45: Total for all Applicants
B47: As is

Sheet Scope Results (hidden)
B2: As per Gen Worth
B4: Then can Download detailed PDF

Sheet Scope General (hidden)
B3: Be able to brand as their own
C4: Import Logo
C5: Color Scheme
B7: Version Controlled
B10: Date of Calculation included
B14: Input Tax Tables (Company and PAYG)
B16: Input HEM Tables (living costs)
B18: Commitments (to be decided)
C19: For now, use actual, but ability to change
C20: Buffer and Stress rates zero for now
C22: 30 years with Benchmark Rate of 5.25%
B25: Outputs
C26: NDI Ratio | D26: 1 minimum | F26: Outgoings/Income
C27: DTI ratio | D27: need to know it
